Workbook

Sheet Planilla Comparativa Acciones
B3: Planilla Comparativa de Acciones (empresas argentinas) | Q3: Fecha: | R3: =IF(T3="",_xll.ECONOMATICA("IBOV","Date of Last Quote"),T3) -> 2020-10-29
B4: Datos Generales
B5: Código | C5: Nombre | F5: Sector | J5: Fecha Última Cotización | K5: Cierre | L5: Máximo 52s | M5: Cierre vs Máximo 52s | N5: Mínimo 52s | O5: Incremento Cierre sobre Mínimo 52s | P5: Volumen Medio anual (Miles) | Q5: Volumen Medio 1M (Miles) | R5: Volumen Mensual vs Anual (miles)
B6: =Base!G3 -> ALUA | C6: Aluar | F6: =IFERROR(_xll.ECONOMATICA(B6&"<XBue>","Sector NAICS",,$R$3),"") -> Industria básica del aluminio | J6: =IFERROR(_xll.ECONOMATICA(B6&"<XBue>","Date of Last Quote"),"") -> 2020-10-29 | K6: =IFERROR(_xll.ECONOMATICA(B6&"<XBue>","close",,$R$3,,,,,"false","false"),"") -> 48.8 | L6: =IFERROR(_xll.ECONOMATICA(B6&"<XBue>","High","52W",$R$3,,,"ORIGINAL CURRENCY",,"false","false",{"std.tec.caddip=true"}),"") -> 55 | M6: =IFERROR(K6/L6,"") -> 0.8872727273 | N6: =IFERROR(_xll.ECONOMATICA(B6&"<XBue>","Low","52W",$R$3,,,"ORIGINAL CURRENCY",,"false","false",{"std.tec.caddip=true"}),"") -> 13.5 | O6: =IFERROR((K6/N6)-1,"") -> 2.614814815 | P6: =IFERROR(_xll.ECONOMATICA(B6&"<XBue>","Hist Average","1Y",$R$3,,,,"THOUSANDS","false","false",,{"std.tec.cals=7"}),"") -> 28739.75619 | Q6: =IFERROR(_xll.ECONOMATICA(B6&"<XBue>","Hist Average","1M",$R$3,,,,"THOUSANDS","false","false",,{"std.tec.cals=7"}),"") -> 57991.18086 | R6: =+Q6-P6 -> 29251.42466
B7: =Base!G4 -> BMA | C7: Banco Macro S.A. | F7: =IFERROR(_xll.ECONOMATICA(B7&"<XBue>","Sector NAICS",,$R$3),"") -> Bancos | H7: =IFERROR(_xll.ECONOMATICA(B7&"<XBSP>","ShrsHold",,"LATEST",,,,"decimal","false","false",,{"std.cac.ccacq=7";"std.cac.nm=0";"std.cac.fam=1"}),"") ->  | I7: =IFERROR(_xll.ECONOMATICA(B7&"<XBSP>","MainShHol",,"LATEST",,,,,"false","false",,{"std.cac.tpa=0";"std.cac.en=1";"std.cac.fam=1"}),"") ->  | J7: =IFERROR(_xll.ECONOMATICA(B7&"<XBue>","Date of Last Quote"),"") -> 2020-10-29 | K7: =IFERROR(_xll.ECONOMATICA(B7&"<XBue>","close",,$R$3,,,,,"false","false"),"") -> 192.2 | L7: =IFERROR(_xll.ECONOMATICA(B7&"<XBue>","High","52W",$R$3,,,"ORIGINAL CURRENCY",,"false","false",{"std.tec.caddip=true"}),"") -> 316 | M7: =IFERROR(K7/L7,"") -> 0.6082278481 | N7: =IFERROR(_xll.ECONOMATICA(B7&"<XBue>","Low","52W",$R$3,,,"ORIGINAL CURRENCY",,"false","false",{"std.tec.caddip=true"}),"") -> 132 | O7: =IFERROR((K7/N7)-1,"") -> 0.4560606061 | P7: =IFERROR(_xll.ECONOMATICA(B7&"<XBue>","Hist Average","1Y",$R$3,,,,"THOUSANDS","false","false",,{"std.tec.cals=7"}),"") -> 80444.19664 | Q7: =IFERROR(_xll.ECONOMATICA(B7&"<XBue>","Hist Average","1M",$R$3,,,,"THOUSANDS","false","false",,{"std.tec.cals=7"}),"") -> 73075.65086 | R7: =+Q7-P7 -> -7368.545781
B8: =Base!G5 -> BBAR | C8: Bbva S. A. | F8: =IFERROR(_xll.ECONOMATICA(B8&"<XBue>","Sector NAICS",,$R$3),"") -> Bancos | H8: =IFERROR(_xll.ECONOMATICA(B8&"<XBSP>","ShrsHold",,"LATEST",,,,"decimal","false","false",,{"std.cac.ccacq=7";"std.cac.nm=0";"std.cac.fam=1"}),"") ->  | I8: =IFERROR(_xll.ECONOMATICA(B8&"<XBSP>","MainShHol",,"LATEST",,,,,"false","false",,{"std.cac.tpa=0";"std.cac.en=1";"std.cac.fam=1"}),"") ->  | J8: =IFERROR(_xll.ECONOMATICA(B8&"<XBue>","Date of Last Quote"),"") -> 2020-10-29 | K8: =IFERROR(_xll.ECONOMATICA(B8&"<XBue>","close",,$R$3,,,,,"false","false"),"") -> 124.25 | L8: =IFERROR(_xll.ECONOMATICA(B8&"<XBue>","High","52W",$R$3,,,"ORIGINAL CURRENCY",,"false","false",{"std.tec.caddip=true"}),"") -> 206 | M8: 0.6031553398 | N8: =IFERROR(_xll.ECONOMATICA(B8&"<XBue>","Low","52W",$R$3,,,"ORIGINAL CURRENCY",,"false","false",{"std.tec.caddip=true"}),"") -> 67 | O8: 0.8544776119 | P8: =IFERROR(_xll.ECONOMATICA(B8&"<XBue>","Hist Average","1Y",$R$3,,,,"THOUSANDS","false","false",,{"std.tec.cals=7"}),"") -> 42548.39724 | Q8: =IFERROR(_xll.ECONOMATICA(B8&"<XBue>","Hist Average","1M",$R$3,,,,"THOUSANDS","false","false",,{"std.tec.cals=7"}),"") -> 32225.99776 | R8: -10322.39948
B9: =Base!G6 -> GGAL | C9: Grupo Fin. Galicia | F9: =IFERROR(_xll.ECONOMATICA(B9&"<XBue>","Sector NAICS",,$R$3),"") -> Instituciones de intermediación crediticia y financiera no bursátil | H9: =IFERROR(_xll.ECONOMATICA(B9&"<XBSP>","ShrsHold",,"LATEST",,,,"decimal","false","false",,{"std.cac.ccacq=7";"std.cac.nm=0";"std.cac.fam=1"}),"") ->  | I9: =IFERROR(_xll.ECONOMATICA(B9&"<XBSP>","MainShHol",,"LATEST",,,,,"false","false",,{"std.cac.tpa=0";"std.cac.en=1";"std.cac.fam=1"}),"") ->  | J9: =IFERROR(_xll.ECONOMATICA(B9&"<XBue>","Date of Last Quote"),"") -> 2020-10-29 | K9: =IFERROR(_xll.ECONOMATICA(B9&"<XBue>","close",,$R$3,,,,,"false","false"),"") -> 100.55 | L9: =IFERROR(_xll.ECONOMATICA(B9&"<XBue>","High","52W",$R$3,,,"ORIGINAL CURRENCY",,"false","false",{"std.tec.caddip=true"}),"") -> 176.9860269 | M9: 0.5681239461 | N9: =IFERROR(_xll.ECONOMATICA(B9&"<XBue>","Low","52W",$R$3,,,"ORIGINAL CURRENCY",,"false","false",{"std.tec.caddip=true"}),"") -> 52.89805832 | O9: 0.9008259131 | P9: =IFERROR(_xll.ECONOMATICA(B9&"<XBue>","Hist Average","1Y",$R$3,,,,"THOUSANDS","false","false",,{"std.tec.cals=7"}),"") -> 283136.2309 | Q9: =IFERROR(_xll.ECONOMATICA(B9&"<XBue>","Hist Average","1M",$R$3,,,,"THOUSANDS","false","false",,{"std.tec.cals=7"}),"") -> 264466.0421 | R9: -18670.1888
B10: =Base!G7 -> PAMP | C10: Pampa Energia S.A. | F10: =IFERROR(_xll.ECONOMATICA(B10&"<XBue>","Sector NAICS",,$R$3),"") -> Empresas de electricidad, gas y agua | H10: =IFERROR(_xll.ECONOMATICA(B10&"<XBSP>","ShrsHold",,"LATEST",,,,"decimal","false","false",,{"std.cac.ccacq=7";"std.cac.nm=0";"std.cac.fam=1"}),"") ->  | I10: =IFERROR(_xll.ECONOMATICA(B10&"<XBSP>","MainShHol",,"LATEST",,,,,"false","false",,{"std.cac.tpa=0";"std.cac.en=1";"std.cac.fam=1"}),"") ->  | J10: =IFERROR(_xll.ECONOMATICA(B10&"<XBue>","Date of Last Quote"),"") -> 2020-10-29 | K10: =IFERROR(_xll.ECONOMATICA(B10&"<XBue>","close",,$R$3,,,,,"false","false"),"") -> 70.85 | L10: =IFERROR(_xll.ECONOMATICA(B10&"<XBue>","High","52W",$R$3,,,"ORIGINAL CURRENCY",,"false","false",{"std.tec.caddip=true"}),"") -> 86.25 | M10: 0.8214492754 | N10: =IFERROR(_xll.ECONOMATICA(B10&"<XBue>","Low","52W",$R$3,,,"ORIGINAL CURRENCY",,"false","false",{"std.tec.caddip=true"}),"") -> 32 | O10: 1.2140625 | P10: =IFERROR(_xll.ECONOMATICA(B10&"<XBue>","Hist Average","1Y",$R$3,,,,"THOUSANDS","false","false",,{"std.tec.cals=7"}),"") -> 56168.56755 | Q10: =IFERROR(_xll.ECONOMATICA(B10&"<XBue>","Hist Average","1M",$R$3,,,,"THOUSANDS","false","false",,{"std.tec.cals=7"}),"") -> 70459.70686 | R10: 14291.13931
B11: =Base!G8 -> TECO2 | C11: Telecom Argentina S.A. | F11: =IFERROR(_xll.ECONOMATICA(B11&"<XBue>","Sector NAICS",,$R$3),"") -> Telecomunicaciones | H11: =IFERROR(_xll.ECONOMATICA(B11&"<XBSP>","ShrsHold",,"LATEST",,,,"decimal","false","false",,{"std.cac.ccacq=7";"std.cac.nm=0";"std.cac.fam=1"}),"") ->  | I11: =IFERROR(_xll.ECONOMATICA(B11&"<XBSP>","MainShHol",,"LATEST",,,,,"false","false",,{"std.cac.tpa=0";"std.cac.en=1";"std.cac.fam=1"}),"") ->  | J11: =IFERROR(_xll.ECONOMATICA(B11&"<XBue>","Date of Last Quote"),"") -> 2020-10-29 | K11: =IFERROR(_xll.ECONOMATICA(B11&"<XBue>","close",,$R$3,,,,,"false","false"),"") -> 206.95 | L11: =IFERROR(_xll.ECONOMATICA(B11&"<XBue>","High","52W",$R$3,,,"ORIGINAL CURRENCY",,"false","false",{"std.tec.caddip=true"}),"") -> 272.55 | M11: 0.7593102183 | N11: =IFERROR(_xll.ECONOMATICA(B11&"<XBue>","Low","52W",$R$3,,,"ORIGINAL CURRENCY",,"false","false",{"std.tec.caddip=true"}),"") -> 129 | O11: 0.6042635659 | P11: =IFERROR(_xll.ECONOMATICA(B11&"<XBue>","Hist Average","1Y",$R$3,,,,"THOUSANDS","false","false",,{"std.tec.cals=7"}),"") -> 14745.37206 | Q11: =IFERROR(_xll.ECONOMATICA(B11&"<XBue>","Hist Average","1M",$R$3,,,,"THOUSANDS","false","false",,{"std.tec.cals=7"}),"") -> 18397.24843 | R11: 3651.876371
B12: =Base!G9 -> TXAR | C12: Ternium Argentina | F12: =IFERROR(_xll.ECONOMATICA(B12&"<XBue>","Sector NAICS",,$R$3),"") -> Fabricación de productos de hierro y acero | H12: =IFERROR(_xll.ECONOMATICA(B12&"<XBSP>","ShrsHold",,"LATEST",,,,"decimal","false","false",,{"std.cac.ccacq=7";"std.cac.nm=0";"std.cac.fam=1"}),"") ->  | I12: =IFERROR(_xll.ECONOMATICA(B12&"<XBSP>","MainShHol",,"LATEST",,,,,"false","false",,{"std.cac.tpa=0";"std.cac.en=1";"std.cac.fam=1"}),"") ->  | J12: =IFERROR(_xll.ECONOMATICA(B12&"<XBue>","Date of Last Quote"),"") -> 2020-10-29 | K12: =IFERROR(_xll.ECONOMATICA(B12&"<XBue>","close",,$R$3,,,,,"false","false"),"") -> 51.3 | L12: =IFERROR(_xll.ECONOMATICA(B12&"<XBue>","High","52W",$R$3,,,"ORIGINAL CURRENCY",,"false","false",{"std.tec.caddip=true"}),"") -> 58.8 | M12: 0.8724489796 | N12: =IFERROR(_xll.ECONOMATICA(B12&"<XBue>","Low","52W",$R$3,,,"ORIGINAL CURRENCY",,"false","false",{"std.tec.caddip=true"}),"") -> 14 | O12: 2.664285714 | P12: =IFERROR(_xll.ECONOMATICA(B12&"<XBue>","Hist Average","1Y",$R$3,,,,"THOUSANDS","false","false",,{"std.tec.cals=7"}),"") -> 24013.03631 | Q12: =IFERROR(_xll.ECONOMATICA(B12&"<XBue>","Hist Average","1M",$R$3,,,,"THOUSANDS","false","false",,{"std.tec.cals=7"}),"") -> 33185.05076 | R12: 9172.014453
B13: =Base!G10 -> YPFD | C13: Ypf S.A. | F13: =IFERROR(_xll.ECONOMATICA(B13&"<XBue>","Sector NAICS",,$R$3),"") -> Extracción de petróleo y gas | H13: =IFERROR(_xll.ECONOMATICA(B13&"<XBSP>","ShrsHold",,"LATEST",,,,"decimal","false","false",,{"std.cac.ccacq=7";"std.cac.nm=0";"std.cac.fam=1"}),"") ->  | I13: =IFERROR(_xll.ECONOMATICA(B13&"<XBSP>","MainShHol",,"LATEST",,,,,"false","false",,{"std.cac.tpa=0";"std.cac.en=1";"std.cac.fam=1"}),"") ->  | J13: =IFERROR(_xll.ECONOMATICA(B13&"<XBue>","Date of Last Quote"),"") -> 2020-10-29 | K13: =IFERROR(_xll.ECONOMATICA(B13&"<XBue>","close",,$R$3,,,,,"false","false"),"") -> 515.05 | L13: =IFERROR(_xll.ECONOMATICA(B13&"<XBue>","High","52W",$R$3,,,"ORIGINAL CURRENCY",,"false","false",{"std.tec.caddip=true"}),"") -> 894.85 | M13: 0.5755713248 | N13: =IFERROR(_xll.ECONOMATICA(B13&"<XBue>","Low","52W",$R$3,,,"ORIGINAL CURRENCY",,"false","false",{"std.tec.caddip=true"}),"") -> 218.65 | O13: 1.355591127 | P13: =IFERROR(_xll.ECONOMATICA(B13&"<XBue>","Hist Average","1Y",$R$3,,,,"THOUSANDS","false","false",,{"std.tec.cals=7"}),"") -> 121964.1533 | Q13: =IFERROR(_xll.ECONOMATICA(B13&"<XBue>","Hist Average","1M",$R$3,,,,"THOUSANDS","false","false",,{"std.tec.cals=7"}),"") -> 100686.0944 | R13: -21278.0589
E14: =IFERROR(_xll.ECONOMATICA(B14&"<XBue>","Sector NAICS",,$R$3),"") ->  | O14: =IFERROR(M14/N14,"") -> 
B15: ="Riesgos y Retornos hasta "&TEXT(R3,"DD-MM-YY") -> Riesgos y Retornos hasta 29-10-20
B16: Nombre | E16: Volatilidad 12M | F16: Sharpe 12M | G16: VAR de 1M 95% | H16: Beta 60M | I16: Correlación 60M | J16: Nº Meses encima MERVAL | K16: Nº Meses abajo MERVAL | L16: Retorno 1 dia | M16: Retorno 1M | N16: Vs Merval 1M (p.p) | O16: Retorno en el año | P16: vs. Merval en el Año | Q16: Retorno 12M | R16: Vs. Merval 12M
B17: =C6 -> Aluar | D17: =IFERROR(_xll.ECONOMATICA($B6&"<XBSP>","Class"),"") ->  | E17: =IFERROR(_xll.ECONOMATICA($B6&"<XBue>","Volatility","12m",$R$3),"") -> 64.26402856 | F17: =IFERROR(_xll.ECONOMATICA($B6&"<XBue>","Sharpe","12m",$R$3),"") -> 1.09171503 | G17: =IFERROR(_xll.ECONOMATICA($B6&"<XBue>","VAR %","1y",$R$3,,,,,"false","false",,{"std.tec.ppr.per=2"}),"") -> 29.8587879 | H17: =IFERROR(_xll.ECONOMATICA($B6&"<XBue>","Beta","60m",$R$3,,,,,"false","false"),"") -> 0.5159368419 | I17: =IFERROR(_xll.ECONOMATICA($B6&"<XBue>","Correlation","60m",$R$3,,,,,"false","false"),"") -> 0.5151701768 | J17: =IFERROR(_xll.ECONOMATICA($B6&"<XBue>","Number Premium","1Y",$R$3,,,,,"false","false",,{"std.tec.stt.bmk=0:4923,1:0,2:3543,3:0,4:0,5:0,6:0,7:0,8:0,9:0,10:0,11:0,12:0,13:0,14:0,15:0,16:0,17:0,18:0,19:0,20:0,21:0,22:0,23:0,24:0,25:0,26:0,27:0,28:0,29:0,30:0,31:0,";"std.tec.stt.bmk=32:0,33:0,34:0,35:0,36:0,37:0,38:0,39:0,40:0,41:0,42:0,43:0,44:0,45:0,46:0,47:0,48:0,49:0,50:0,51:0,52:0,53:0,54:0,55:0,56:0,57:0,58:0,59:0,60:0,61:0,62:0,63:0,64:0,65:0,66:0,67:0,68:0,69:0,70:0,71:0,72:0,73:0,74:0,75:0,76:0,77:0,78:0,79:0";"std.tec.dret.noprc=true"}),"") -> 6 | K17: =IFERROR(_xll.ECONOMATICA($B6&"<XBue>","Number Premium","1Y",$R$3,,,,,"false","false",,{"std.tec.stt.bmk=0:4923,1:0,2:3543,3:0,4:0,5:0,6:0,7:0,8:0,9:0,10:0,11:0,12:0,13:0,14:0,15:0,16:0,17:0,18:0,19:0,20:0,21:0,22:0,23:0,24:0,25:0,26:0,27:0,28:0,29:0,30:0,31:0,";"std.tec.stt.bmk=32:0,33:0,34:0,35:0,36:0,37:0,38:0,39:0,40:0,41:0,42:0,43:0,44:0,45:0,46:0,47:0,48:0,49:0,50:0,51:0,52:0,53:0,54:0,55:0,56:0,57:0,58:0,59:0,60:0,61:0,62:0,63:0,64:0,65:0,66:0,67:0,68:0,69:0,70:0,71:0,72:0,73:0,74:0,75:0,76:0,77:0,78:0,79:0";"std.tec.dret.cmp=-1";"std.tec.dret.noprc=true"}),"") -> 6 | L17: =IFERROR(_xll.ECONOMATICA($B6&"<XBue>","return",,$R$3,,,,"decimal"),"") -> 0.03829787234 | M17: =IFERROR(_xll.ECONOMATICA($B6&"<XBue>","return","1m",$R$3,,,,"decimal"),"") -> -0.02008032128 | N17: =IFERROR(_xll.ECONOMATICA($B6&"<XBue>","Premium","1m",$R$3,,,,,,,,{"std.tec.stt.bmk=0:4923,1:0,2:3543,3:0,4:0,5:0,6:0,7:0,8:0,9:0,10:0,11:0,12:0,13:0,14:0,15:0,16:0,17:0,18:0,19:0,20:0,21:0,22:0,23:0,24:0,25:0,26:0,27:0,28:0,29:0,30:0,31:0,";"std.tec.stt.bmk=32:0,33:0,34:0,35:0,36:0,37:0,38:0,39:0,40:0,41:0,42:0,43:0,44:0,45:0,46:0,47:0,48:0,49:0,50:0,51:0,52:0,53:0,54:0,55:0,56:0,57:0,58:0,59:0,60:0,61:0,62:0,63:0,64:0,65:0,66:0,67:0,68:0,69:0,70:0,71:0,72:0,73:0,74:0,75:0,76:0,77:0,78:0,79:0";"std.tec.fordpr=1"}),"") -> -8.447749947 | O17: =IFERROR(_xll.ECONOMATICA($B6&"<XBue>","return","in the year",$R$3,,,,"decimal"),"") -> 0.5061728395 | P17: =IFERROR(_xll.ECONOMATICA($B6&"<XBue>","Premium","in the year",$R$3,,,,,,,,{"std.tec.stt.bmk=0:4923,1:0,2:3543,3:0,4:0,5:0,6:0,7:0,8:0,9:0,10:0,11:0,12:0,13:0,14:0,15:0,16:0,17:0,18:0,19:0,20:0,21:0,22:0,23:0,24:0,25:0,26:0,27:0,28:0,29:0,30:0,31:0,";"std.tec.stt.bmk=32:0,33:0,34:0,35:0,36:0,37:0,38:0,39:0,40:0,41:0,42:0,43:0,44:0,45:0,46:0,47:0,48:0,49:0,50:0,51:0,52:0,53:0,54:0,55:0,56:0,57:0,58:0,59:0,60:0,61:0,62:0,63:0,64:0,65:0,66:0,67:0,68:0,69:0,70:0,71:0,72:0,73:0,74:0,75:0,76:0,77:0,78:0,79:0";"std.tec.fordpr=1"}),"") -> 42.83537784 | Q17: =IFERROR(_xll.ECONOMATICA($B6&"<XBue>","return","12m",$R$3,,,,"decimal"),"") -> 0.6834430239 | R17: =IFERROR(_xll.ECONOMATICA($B6&"<XBue>","Premium","12m",$R$3,,,,,,,,{"std.tec.stt.bmk=0:4923,1:0,2:3543,3:0,4:0,5:0,6:0,7:0,8:0,9:0,10:0,11:0,12:0,13:0,14:0,15:0,16:0,17:0,18:0,19:0,20:0,21:0,22:0,23:0,24:0,25:0,26:0,27:0,28:0,29:0,30:0,31:0,";"std.tec.stt.bmk=32:0,33:0,34:0,35:0,36:0,37:0,38:0,39:0,40:0,41:0,42:0,43:0,44:0,45:0,46:0,47:0,48:0,49:0,50:0,51:0,52:0,53:0,54:0,55:0,56:0,57:0,58:0,59:0,60:0,61:0,62:0,63:0,64:0,65:0,66:0,67:0,68:0,69:0,70:0,71:0,72:0,73:0,74:0,75:0,76:0,77:0,78:0,79:0";"std.tec.fordpr=1"}),"") -> 30.33433441
B18: Banco Macro S.A. | D18: =IFERROR(_xll.ECONOMATICA(B7&"<XBSP>","Class"),"") ->  | E18: =IFERROR(_xll.ECONOMATICA($B7&"<XBue>","Volatility","12m",$R$3),"") -> 75.52325644 | F18: =IFERROR(_xll.ECONOMATICA($B7&"<XBue>","Sharpe","12m",$R$3),"") -> 0.1745824453 | G18: =IFERROR(_xll.ECONOMATICA($B7&"<XBue>","VAR %","1y",$R$3,,,,,"false","false",,{"std.tec.ppr.per=2"}),"") -> 35.62008212 | H18: =IFERROR(_xll.ECONOMATICA($B7&"<XBue>","Beta","60m",$R$3,,,,,"false","false"),"") -> 1.17568056 | I18: =IFERROR(_xll.ECONOMATICA($B7&"<XBue>","Correlation","60m",$R$3,,,,,"false","false"),"") -> 0.8670708083 | J18: =IFERROR(_xll.ECONOMATICA($B7&"<XBue>","Number Premium","1Y",$R$3,,,,,"false","false",,{"std.tec.stt.bmk=0:4923,1:0,2:3543,3:0,4:0,5:0,6:0,7:0,8:0,9:0,10:0,11:0,12:0,13:0,14:0,15:0,16:0,17:0,18:0,19:0,20:0,21:0,22:0,23:0,24:0,25:0,26:0,27:0,28:0,29:0,30:0,31:0,";"std.tec.stt.bmk=32:0,33:0,34:0,35:0,36:0,37:0,38:0,39:0,40:0,41:0,42:0,43:0,44:0,45:0,46:0,47:0,48:0,49:0,50:0,51:0,52:0,53:0,54:0,55:0,56:0,57:0,58:0,59:0,60:0,61:0,62:0,63:0,64:0,65:0,66:0,67:0,68:0,69:0,70:0,71:0,72:0,73:0,74:0,75:0,76:0,77:0,78:0,79:0";"std.tec.dret.noprc=true"}),"") -> 5 | K18: =IFERROR(_xll.ECONOMATICA($B7&"<XBue>","Number Premium","1Y",$R$3,,,,,"false","false",,{"std.tec.stt.bmk=0:4923,1:0,2:3543,3:0,4:0,5:0,6:0,7:0,8:0,9:0,10:0,11:0,12:0,13:0,14:0,15:0,16:0,17:0,18:0,19:0,20:0,21:0,22:0,23:0,24:0,25:0,26:0,27:0,28:0,29:0,30:0,31:0,";"std.tec.stt.bmk=32:0,33:0,34:0,35:0,36:0,37:0,38:0,39:0,40:0,41:0,42:0,43:0,44:0,45:0,46:0,47:0,48:0,49:0,50:0,51:0,52:0,53:0,54:0,55:0,56:0,57:0,58:0,59:0,60:0,61:0,62:0,63:0,64:0,65:0,66:0,67:0,68:0,69:0,70:0,71:0,72:0,73:0,74:0,75:0,76:0,77:0,78:0,79:0";"std.tec.dret.cmp=-1";"std.tec.dret.noprc=true"}),"") -> 7 | L18: =IFERROR(_xll.ECONOMATICA($B7&"<XBue>","return",,$R$3,,,,"decimal"),"") -> 0.0325006715 | M18: =IFERROR(_xll.ECONOMATICA($B7&"<XBue>","return","1m",$R$3,,,,"decimal"),"") -> -0.08454393903 | N18: =IFERROR(_xll.ECONOMATICA($B7&"<XBue>","Premium","1m",$R$3,,,,,,,,{"std.tec.stt.bmk=0:4923,1:0,2:3543,3:0,4:0,5:0,6:0,7:0,8:0,9:0,10:0,11:0,12:0,13:0,14:0,15:0,16:0,17:0,18:0,19:0,20:0,21:0,22:0,23:0,24:0,25:0,26:0,27:0,28:0,29:0,30:0,31:0,";"std.tec.stt.bmk=32:0,33:0,34:0,35:0,36:0,37:0,38:0,39:0,40:0,41:0,42:0,43:0,44:0,45:0,46:0,47:0,48:0,49:0,50:0,51:0,52:0,53:0,54:0,55:0,56:0,57:0,58:0,59:0,60:0,61:0,62:0,63:0,64:0,65:0,66:0,67:0,68:0,69:0,70:0,71:0,72:0,73:0,74:0,75:0,76:0,77:0,78:0,79:0";"std.tec.fordpr=1"}),"") -> -14.89411172 | O18: =IFERROR(_xll.ECONOMATICA($B7&"<XBue>","return","in the year",$R$3,,,,"decimal"),"") -> -0.2975146199 | P18: =IFERROR(_xll.ECONOMATICA($B7&"<XBue>","Premium","in the year",$R$3,,,,,,,,{"std.tec.stt.bmk=0:4923,1:0,2:3543,3:0,4:0,5:0,6:0,7:0,8:0,9:0,10:0,11:0,12:0,13:0,14:0,15:0,16:0,17:0,18:0,19:0,20:0,21:0,22:0,23:0,24:0,25:0,26:0,27:0,28:0,29:0,30:0,31:0,";"std.tec.stt.bmk=32:0,33:0,34:0,35:0,36:0,37:0,38:0,39:0,40:0,41:0,42:0,43:0,44:0,45:0,46:0,47:0,48:0,49:0,50:0,51:0,52:0,53:0,54:0,55:0,56:0,57:0,58:0,59:0,60:0,61:0,62:0,63:0,64:0,65:0,66:0,67:0,68:0,69:0,70:0,71:0,72:0,73:0,74:0,75:0,76:0,77:0,78:0,79:0";"std.tec.fordpr=1"}),"") -> -37.5333681 | Q18: =IFERROR(_xll.ECONOMATICA($B7&"<XBue>","return","12m",$R$3,,,,"decimal"),"") -> 0.0648199446 | R18: =IFERROR(_xll.ECONOMATICA($B7&"<XBue>","Premium","12m",$R$3,,,,,,,,{"std.tec.stt.bmk=0:4923,1:0,2:3543,3:0,4:0,5:0,6:0,7:0,8:0,9:0,10:0,11:0,12:0,13:0,14:0,15:0,16:0,17:0,18:0,19:0,20:0,21:0,22:0,23:0,24:0,25:0,26:0,27:0,28:0,29:0,30:0,31:0,";"std.tec.stt.bmk=32:0,33:0,34:0,35:0,36:0,37:0,38:0,39:0,40:0,41:0,42:0,43:0,44:0,45:0,46:0,47:0,48:0,49:0,50:0,51:0,52:0,53:0,54:0,55:0,56:0,57:0,58:0,59:0,60:0,61:0,62:0,63:0,64:0,65:0,66:0,67:0,68:0,69:0,70:0,71:0,72:0,73:0,74:0,75:0,76:0,77:0,78:0,79:0";"std.tec.fordpr=1"}),"") -> -31.52797352
B19: Bbva S. A. | D19: =IFERROR(_xll.ECONOMATICA(B8&"<XBSP>","Class"),"") ->  | E19: =IFERROR(_xll.ECONOMATICA($B8&"<XBue>","Volatility","12m",$R$3),"") -> 76.23054399 | F19: =IFERROR(_xll.ECONOMATICA($B8&"<XBue>","Sharpe","12m",$R$3),"") -> 0.6898222497 | G19: =IFERROR(_xll.ECONOMATICA($B8&"<XBue>","VAR %","1y",$R$3,,,,,"false","false",,{"std.tec.ppr.per=2"}),"") -> 35.99726063 | H19: =IFERROR(_xll.ECONOMATICA($B8&"<XBue>","Beta","60m",$R$3,,,,,"false","false"),"") -> 1.210621712 | I19: =IFERROR(_xll.ECONOMATICA($B8&"<XBue>","Correlation","60m",$R$3,,,,,"false","false"),"") -> 0.8781554831 | J19: =IFERROR(_xll.ECONOMATICA($B8&"<XBue>","Number Premium","1Y",$R$3,,,,,"false","false",,{"std.tec.stt.bmk=0:4923,1:0,2:3543,3:0,4:0,5:0,6:0,7:0,8:0,9:0,10:0,11:0,12:0,13:0,14:0,15:0,16:0,17:0,18:0,19:0,20:0,21:0,22:0,23:0,24:0,25:0,26:0,27:0,28:0,29:0,30:0,31:0,";"std.tec.stt.bmk=32:0,33:0,34:0,35:0,36:0,37:0,38:0,39:0,40:0,41:0,42:0,43:0,44:0,45:0,46:0,47:0,48:0,49:0,50:0,51:0,52:0,53:0,54:0,55:0,56:0,57:0,58:0,59:0,60:0,61:0,62:0,63:0,64:0,65:0,66:0,67:0,68:0,69:0,70:0,71:0,72:0,73:0,74:0,75:0,76:0,77:0,78:0,79:0";"std.tec.dret.noprc=true"}),"") -> 6 | K19: =IFERROR(_xll.ECONOMATICA($B8&"<XBue>","Number Premium","1Y",$R$3,,,,,"false","false",,{"std.tec.stt.bmk=0:4923,1:0,2:3543,3:0,4:0,5:0,6:0,7:0,8:0,9:0,10:0,11:0,12:0,13:0,14:0,15:0,16:0,17:0,18:0,19:0,20:0,21:0,22:0,23:0,24:0,25:0,26:0,27:0,28:0,29:0,30:0,31:0,";"std.tec.stt.bmk=32:0,33:0,34:0,35:0,36:0,37:0,38:0,39:0,40:0,41:0,42:0,43:0,44:0,45:0,46:0,47:0,48:0,49:0,50:0,51:0,52:0,53:0,54:0,55:0,56:0,57:0,58:0,59:0,60:0,61:0,62:0,63:0,64:0,65:0,66:0,67:0,68:0,69:0,70:0,71:0,72:0,73:0,74:0,75:0,76:0,77:0,78:0,79:0";"std.tec.dret.cmp=-1";"std.tec.dret.noprc=true"}),"") -> 6 | L19: =IFERROR(_xll.ECONOMATICA($B8&"<XBue>","return",,$R$3,,,,"decimal"),"") -> 0.01594439902 | M19: =IFERROR(_xll.ECONOMATICA($B8&"<XBue>","return","1m",$R$3,,,,"decimal"),"") -> 0.01304525071 | N19: =IFERROR(_xll.ECONOMATICA($B8&"<XBue>","Premium","1m",$R$3,,,,,,,,{"std.tec.stt.bmk=0:4923,1:0,2:3543,3:0,4:0,5:0,6:0,7:0,8:0,9:0,10:0,11:0,12:0,13:0,14:0,15:0,16:0,17:0,18:0,19:0,20:0,21:0,22:0,23:0,24:0,25:0,26:0,27:0,28:0,29:0,30:0,31:0,";"std.tec.stt.bmk=32:0,33:0,34:0,35:0,36:0,37:0,38:0,39:0,40:0,41:0,42:0,43:0,44:0,45:0,46:0,47:0,48:0,49:0,50:0,51:0,52:0,53:0,54:0,55:0,56:0,57:0,58:0,59:0,60:0,61:0,62:0,63:0,64:0,65:0,66:0,67:0,68:0,69:0,70:0,71:0,72:0,73:0,74:0,75:0,76:0,77:0,78:0,79:0";"std.tec.fordpr=1"}),"") -> -5.135192747 | O19: =IFERROR(_xll.ECONOMATICA($B8&"<XBue>","return","in the year",$R$3,,,,"decimal"),"") -> -0.115658363 | P19: =IFERROR(_xll.ECONOMATICA($B8&"<XBue>","Premium","in the year",$R$3,,,,,,,,{"std.tec.stt.bmk=0:4923,1:0,2:3543,3:0,4:0,5:0,6:0,7:0,8:0,9:0,10:0,11:0,12:0,13:0,14:0,15:0,16:0,17:0,18:0,19:0,20:0,21:0,22:0,23:0,24:0,25:0,26:0,27:0,28:0,29:0,30:0,31:0,";"std.tec.stt.bmk=32:0,33:0,34:0,35:0,36:0,37:0,38:0,39:0,40:0,41:0,42:0,43:0,44:0,45:0,46:0,47:0,48:0,49:0,50:0,51:0,52:0,53:0,54:0,55:0,56:0,57:0,58:0,59:0,60:0,61:0,62:0,63:0,64:0,65:0,66:0,67:0,68:0,69:0,70:0,71:0,72:0,73:0,74:0,75:0,76:0,77:0,78:0,79:0";"std.tec.fordpr=1"}),"") -> -19.34774241 | Q19: =IFERROR(_xll.ECONOMATICA($B8&"<XBue>","return","12m",$R$3,,,,"decimal"),"") -> 0.3403451996 | R19: =IFERROR(_xll.ECONOMATICA($B8&"<XBue>","Premium","12m",$R$3,,,,,,,,{"std.tec.stt.bmk=0:4923,1:0,2:3543,3:0,4:0,5:0,6:0,7:0,8:0,9:0,10:0,11:0,12:0,13:0,14:0,15:0,16:0,17:0,18:0,19:0,20:0,21:0,22:0,23:0,24:0,25:0,26:0,27:0,28:0,29:0,30:0,31:0,";"std.tec.stt.bmk=32:0,33:0,34:0,35:0,36:0,37:0,38:0,39:0,40:0,41:0,42:0,43:0,44:0,45:0,46:0,47:0,48:0,49:0,50:0,51:0,52:0,53:0,54:0,55:0,56:0,57:0,58:0,59:0,60:0,61:0,62:0,63:0,64:0,65:0,66:0,67:0,68:0,69:0,70:0,71:0,72:0,73:0,74:0,75:0,76:0,77:0,78:0,79:0";"std.tec.fordpr=1"}),"") -> -3.975448025
B20: Grupo Fin. Galicia | D20: =IFERROR(_xll.ECONOMATICA(B9&"<XBSP>","Class"),"") ->  | E20: =IFERROR(_xll.ECONOMATICA($B9&"<XBue>","Volatility","12m",$R$3),"") -> 76.42552678 | F20: =IFERROR(_xll.ECONOMATICA($B9&"<XBue>","Sharpe","12m",$R$3),"") -> 0.3930751448 | G20: =IFERROR(_xll.ECONOMATICA($B9&"<XBue>","VAR %","1y",$R$3,,,,,"false","false",,{"std.tec.ppr.per=2"}),"") -> 36.03725907 | H20: =IFERROR(_xll.ECONOMATICA($B9&"<XBue>","Beta","60m",$R$3,,,,,"false","false"),"") -> 1.33624159 | I20: =IFERROR(_xll.ECONOMATICA($B9&"<XBue>","Correlation","60m",$R$3,,,,,"false","false"),"") -> 0.9084767678 | J20: =IFERROR(_xll.ECONOMATICA($B9&"<XBue>","Number Premium","1Y",$R$3,,,,,"false","false",,{"std.tec.stt.bmk=0:4923,1:0,2:3543,3:0,4:0,5:0,6:0,7:0,8:0,9:0,10:0,11:0,12:0,13:0,14:0,15:0,16:0,17:0,18:0,19:0,20:0,21:0,22:0,23:0,24:0,25:0,26:0,27:0,28:0,29:0,30:0,31:0,";"std.tec.stt.bmk=32:0,33:0,34:0,35:0,36:0,37:0,38:0,39:0,40:0,41:0,42:0,43:0,44:0,45:0,46:0,47:0,48:0,49:0,50:0,51:0,52:0,53:0,54:0,55:0,56:0,57:0,58:0,59:0,60:0,61:0,62:0,63:0,64:0,65:0,66:0,67:0,68:0,69:0,70:0,71:0,72:0,73:0,74:0,75:0,76:0,77:0,78:0,79:0";"std.tec.dret.noprc=true"}),"") -> 6 | K20: =IFERROR(_xll.ECONOMATICA($B9&"<XBue>","Number Premium","1Y",$R$3,,,,,"false","false",,{"std.tec.stt.bmk=0:4923,1:0,2:3543,3:0,4:0,5:0,6:0,7:0,8:0,9:0,10:0,11:0,12:0,13:0,14:0,15:0,16:0,17:0,18:0,19:0,20:0,21:0,22:0,23:0,24:0,25:0,26:0,27:0,28:0,29:0,30:0,31:0,";"std.tec.stt.bmk=32:0,33:0,34:0,35:0,36:0,37:0,38:0,39:0,40:0,41:0,42:0,43:0,44:0,45:0,46:0,47:0,48:0,49:0,50:0,51:0,52:0,53:0,54:0,55:0,56:0,57:0,58:0,59:0,60:0,61:0,62:0,63:0,64:0,65:0,66:0,67:0,68:0,69:0,70:0,71:0,72:0,73:0,74:0,75:0,76:0,77:0,78:0,79:0";"std.tec.dret.cmp=-1";"std.tec.dret.noprc=true"}),"") -> 6 | L20: =IFERROR(_xll.ECONOMATICA($B9&"<XBue>","return",,$R$3,,,,"decimal"),"") -> 0.02654415518 | M20: =IFERROR(_xll.ECONOMATICA($B9&"<XBue>","return","1m",$R$3,,,,"decimal"),"") -> -0.05136020195 | N20: =IFERROR(_xll.ECONOMATICA($B9&"<XBue>","Premium","1m",$R$3,,,,,,,,{"std.tec.stt.bmk=0:4923,1:0,2:3543,3:0,4:0,5:0,6:0,7:0,8:0,9:0,10:0,11:0,12:0,13:0,14:0,15:0,16:0,17:0,18:0,19:0,20:0,21:0,22:0,23:0,24:0,25:0,26:0,27:0,28:0,29:0,30:0,31:0,";"std.tec.stt.bmk=32:0,33:0,34:0,35:0,36:0,37:0,38:0,39:0,40:0,41:0,42:0,43:0,44:0,45:0,46:0,47:0,48:0,49:0,50:0,51:0,52:0,53:0,54:0,55:0,56:0,57:0,58:0,59:0,60:0,61:0,62:0,63:0,64:0,65:0,66:0,67:0,68:0,69:0,70:0,71:0,72:0,73:0,74:0,75:0,76:0,77:0,78:0,79:0";"std.tec.fordpr=1"}),"") -> -11.57573801 | O20: =IFERROR(_xll.ECONOMATICA($B9&"<XBue>","return","in the year",$R$3,,,,"decimal"),"") -> -0.1636991254 | P20: =IFERROR(_xll.ECONOMATICA($B9&"<XBue>","Premium","in the year",$R$3,,,,,,,,{"std.tec.stt.bmk=0:4923,1:0,2:3543,3:0,4:0,5:0,6:0,7:0,8:0,9:0,10:0,11:0,12:0,13:0,14:0,15:0,16:0,17:0,18:0,19:0,20:0,21:0,22:0,23:0,24:0,25:0,26:0,27:0,28:0,29:0,30:0,31:0,";"std.tec.stt.bmk=32:0,33:0,34:0,35:0,36:0,37:0,38:0,39:0,40:0,41:0,42:0,43:0,44:0,45:0,46:0,47:0,48:0,49:0,50:0,51:0,52:0,53:0,54:0,55:0,56:0,57:0,58:0,59:0,60:0,61:0,62:0,63:0,64:0,65:0,66:0,67:0,68:0,69:0,70:0,71:0,72:0,73:0,74:0,75:0,76:0,77:0,78:0,79:0";"std.tec.fordpr=1"}),"") -> -24.15181865 | Q20: =IFERROR(_xll.ECONOMATICA($B9&"<XBue>","return","12m",$R$3,,,,"decimal"),"") -> 0.182490539 | R20: =IFERROR(_xll.ECONOMATICA($B9&"<XBue>","Premium","12m",$R$3,,,,,,,,{"std.tec.stt.bmk=0:4923,1:0,2:3543,3:0,4:0,5:0,6:0,7:0,8:0,9:0,10:0,11:0,12:0,13:0,14:0,15:0,16:0,17:0,18:0,19:0,20:0,21:0,22:0,23:0,24:0,25:0,26:0,27:0,28:0,29:0,30:0,31:0,";"std.tec.stt.bmk=32:0,33:0,34:0,35:0,36:0,37:0,38:0,39:0,40:0,41:0,42:0,43:0,44:0,45:0,46:0,47:0,48:0,49:0,50:0,51:0,52:0,53:0,54:0,55:0,56:0,57:0,58:0,59:0,60:0,61:0,62:0,63:0,64:0,65:0,66:0,67:0,68:0,69:0,70:0,71:0,72:0,73:0,74:0,75:0,76:0,77:0,78:0,79:0";"std.tec.fordpr=1"}),"") -> -19.76091409
B21: Pampa Energia S.A. | D21: =IFERROR(_xll.ECONOMATICA(B10&"<XBSP>","Class"),"") ->  | E21: =IFERROR(_xll.ECONOMATICA($B10&"<XBue>","Volatility","12m",$R$3),"") -> 63.39125531 | F21: =IFERROR(_xll.ECONOMATICA($B10&"<XBue>","Sharpe","12m",$R$3),"") -> 0.9727925417 | G21: =IFERROR(_xll.ECONOMATICA($B10&"<XBue>","VAR %","1y",$R$3,,,,,"false","false",,{"std.tec.ppr.per=2"}),"") -> 30.19591207 | H21: =IFERROR(_xll.ECONOMATICA($B10&"<XBue>","Beta","60m",$R$3,,,,,"false","false"),"") -> 0.9140151785 | I21: =IFERROR(_xll.ECONOMATICA($B10&"<XBue>","Correlation","60m",$R$3,,,,,"false","false"),"") -> 0.7927369813 | J21: =IFERROR(_xll.ECONOMATICA($B10&"<XBue>","Number Premium","1Y",$R$3,,,,,"false","false",,{"std.tec.stt.bmk=0:4923,1:0,2:3543,3:0,4:0,5:0,6:0,7:0,8:0,9:0,10:0,11:0,12:0,13:0,14:0,15:0,16:0,17:0,18:0,19:0,20:0,21:0,22:0,23:0,24:0,25:0,26:0,27:0,28:0,29:0,30:0,31:0,";"std.tec.stt.bmk=32:0,33:0,34:0,35:0,36:0,37:0,38:0,39:0,40:0,41:0,42:0,43:0,44:0,45:0,46:0,47:0,48:0,49:0,50:0,51:0,52:0,53:0,54:0,55:0,56:0,57:0,58:0,59:0,60:0,61:0,62:0,63:0,64:0,65:0,66:0,67:0,68:0,69:0,70:0,71:0,72:0,73:0,74:0,75:0,76:0,77:0,78:0,79:0";"std.tec.dret.noprc=true"}),"") -> 4 | K21: =IFERROR(_xll.ECONOMATICA($B10&"<XBue>","Number Premium","1Y",$R$3,,,,,"false","false",,{"std.tec.stt.bmk=0:4923,1:0,2:3543,3:0,4:0,5:0,6:0,7:0,8:0,9:0,10:0,11:0,12:0,13:0,14:0,15:0,16:0,17:0,18:0,19:0,20:0,21:0,22:0,23:0,24:0,25:0,26:0,27:0,28:0,29:0,30:0,31:0,";"std.tec.stt.bmk=32:0,33:0,34:0,35:0,36:0,37:0,38:0,39:0,40:0,41:0,42:0,43:0,44:0,45:0,46:0,47:0,48:0,49:0,50:0,51:0,52:0,53:0,54:0,55:0,56:0,57:0,58:0,59:0,60:0,61:0,62:0,63:0,64:0,65:0,66:0,67:0,68:0,69:0,70:0,71:0,72:0,73:0,74:0,75:0,76:0,77:0,78:0,79:0";"std.tec.dret.cmp=-1";"std.tec.dret.noprc=true"}),"") -> 8 | L21: =IFERROR(_xll.ECONOMATICA($B10&"<XBue>","return",,$R$3,,,,"decimal"),"") -> 0.01577060932 | M21: =IFERROR(_xll.ECONOMATICA($B10&"<XBue>","return","1m",$R$3,,,,"decimal"),"") -> 0.1720430108 | N21: =IFERROR(_xll.ECONOMATICA($B10&"<XBue>","Premium","1m",$R$3,,,,,,,,{"std.tec.stt.bmk=0:4923,1:0,2:3543,3:0,4:0,5:0,6:0,7:0,8:0,9:0,10:0,11:0,12:0,13:0,14:0,15:0,16:0,17:0,18:0,19:0,20:0,21:0,22:0,23:0,24:0,25:0,26:0,27:0,28:0,29:0,30:0,31:0,";"std.tec.stt.bmk=32:0,33:0,34:0,35:0,36:0,37:0,38:0,39:0,40:0,41:0,42:0,43:0,44:0,45:0,46:0,47:0,48:0,49:0,50:0,51:0,52:0,53:0,54:0,55:0,56:0,57:0,58:0,59:0,60:0,61:0,62:0,63:0,64:0,65:0,66:0,67:0,68:0,69:0,70:0,71:0,72:0,73:0,74:0,75:0,76:0,77:0,78:0,79:0";"std.tec.fordpr=1"}),"") -> 10.76458326 | O21: =IFERROR(_xll.ECONOMATICA($B10&"<XBue>","return","in the year",$R$3,,,,"decimal"),"") -> 0.4226907631 | P21: =IFERROR(_xll.ECONOMATICA($B10&"<XBue>","Premium","in the year",$R$3,,,,,,,,{"std.tec.stt.bmk=0:4923,1:0,2:3543,3:0,4:0,5:0,6:0,7:0,8:0,9:0,10:0,11:0,12:0,13:0,14:0,15:0,16:0,17:0,18:0,19:0,20:0,21:0,22:0,23:0,24:0,25:0,26:0,27:0,28:0,29:0,30:0,31:0,";"std.tec.stt.bmk=32:0,33:0,34:0,35:0,36:0,37:0,38:0,39:0,40:0,41:0,42:0,43:0,44:0,45:0,46:0,47:0,48:0,49:0,50:0,51:0,52:0,53:0,54:0,55:0,56:0,57:0,58:0,59:0,60:0,61:0,62:0,63:0,64:0,65:0,66:0,67:0,68:0,69:0,70:0,71:0,72:0,73:0,74:0,75:0,76:0,77:0,78:0,79:0";"std.tec.fordpr=1"}),"") -> 34.4871702 | Q21: =IFERROR(_xll.ECONOMATICA($B10&"<XBue>","return","12m",$R$3,,,,"decimal"),"") -> 0.5554335895 | R21: =IFERROR(_xll.ECONOMATICA($B10&"<XBue>","Premium","12m",$R$3,,,,,,,,{"std.tec.stt.bmk=0:4923,1:0,2:3543,3:0,4:0,5:0,6:0,7:0,8:0,9:0,10:0,11:0,12:0,13:0,14:0,15:0,16:0,17:0,18:0,19:0,20:0,21:0,22:0,23:0,24:0,25:0,26:0,27:0,28:0,29:0,30:0,31:0,";"std.tec.stt.bmk=32:0,33:0,34:0,35:0,36:0,37:0,38:0,39:0,40:0,41:0,42:0,43:0,44:0,45:0,46:0,47:0,48:0,49:0,50:0,51:0,52:0,53:0,54:0,55:0,56:0,57:0,58:0,59:0,60:0,61:0,62:0,63:0,64:0,65:0,66:0,67:0,68:0,69:0,70:0,71:0,72:0,73:0,74:0,75:0,76:0,77:0,78:0,79:0";"std.tec.fordpr=1"}),"") -> 17.53339096
B22: Telecom Argentina S.A. | D22: =IFERROR(_xll.ECONOMATICA(B11&"<XBSP>","Class"),"") ->  | E22: =IFERROR(_xll.ECONOMATICA($B11&"<XBue>","Volatility","12m",$R$3),"") -> 59.30666451 | F22: =IFERROR(_xll.ECONOMATICA($B11&"<XBue>","Sharpe","12m",$R$3),"") -> 0.7891029255 | G22: =IFERROR(_xll.ECONOMATICA($B11&"<XBue>","VAR %","1y",$R$3,,,,,"false","false",,{"std.tec.ppr.per=2"}),"") -> 27.97223092 | H22: =IFERROR(_xll.ECONOMATICA($B11&"<XBue>","Beta","60m",$R$3,,,,,"false","false"),"") -> 0.5734424198 | I22: =IFERROR(_xll.ECONOMATICA($B11&"<XBue>","Correlation","60m",$R$3,,,,,"false","false"),"") -> 0.7233941177 | J22: =IFERROR(_xll.ECONOMATICA($B11&"<XBue>","Number Premium","1Y",$R$3,,,,,"false","false",,{"std.tec.stt.bmk=0:4923,1:0,2:3543,3:0,4:0,5:0,6:0,7:0,8:0,9:0,10:0,11:0,12:0,13:0,14:0,15:0,16:0,17:0,18:0,19:0,20:0,21:0,22:0,23:0,24:0,25:0,26:0,27:0,28:0,29:0,30:0,31:0,";"std.tec.stt.bmk=32:0,33:0,34:0,35:0,36:0,37:0,38:0,39:0,40:0,41:0,42:0,43:0,44:0,45:0,46:0,47:0,48:0,49:0,50:0,51:0,52:0,53:0,54:0,55:0,56:0,57:0,58:0,59:0,60:0,61:0,62:0,63:0,64:0,65:0,66:0,67:0,68:0,69:0,70:0,71:0,72:0,73:0,74:0,75:0,76:0,77:0,78:0,79:0";"std.tec.dret.noprc=true"}),"") -> 8 | K22: =IFERROR(_xll.ECONOMATICA($B11&"<XBue>","Number Premium","1Y",$R$3,,,,,"false","false",,{"std.tec.stt.bmk=0:4923,1:0,2:3543,3:0,4:0,5:0,6:0,7:0,8:0,9:0,10:0,11:0,12:0,13:0,14:0,15:0,16:0,17:0,18:0,19:0,20:0,21:0,22:0,23:0,24:0,25:0,26:0,27:0,28:0,29:0,30:0,31:0,";"std.tec.stt.bmk=32:0,33:0,34:0,35:0,36:0,37:0,38:0,39:0,40:0,41:0,42:0,43:0,44:0,45:0,46:0,47:0,48:0,49:0,50:0,51:0,52:0,53:0,54:0,55:0,56:0,57:0,58:0,59:0,60:0,61:0,62:0,63:0,64:0,65:0,66:0,67:0,68:0,69:0,70:0,71:0,72:0,73:0,74:0,75:0,76:0,77:0,78:0,79:0";"std.tec.dret.cmp=-1";"std.tec.dret.noprc=true"}),"") -> 4 | L22: =IFERROR(_xll.ECONOMATICA($B11&"<XBue>","return",,$R$3,,,,"decimal"),"") -> 0.008037018995 | M22: =IFERROR(_xll.ECONOMATICA($B11&"<XBue>","return","1m",$R$3,,,,"decimal"),"") -> 0.0990440786 | N22: =IFERROR(_xll.ECONOMATICA($B11&"<XBue>","Premium","1m",$R$3,,,,,,,,{"std.tec.stt.bmk=0:4923,1:0,2:3543,3:0,4:0,5:0,6:0,7:0,8:0,9:0,10:0,11:0,12:0,13:0,14:0,15:0,16:0,17:0,18:0,19:0,20:0,21:0,22:0,23:0,24:0,25:0,26:0,27:0,28:0,29:0,30:0,31:0,";"std.tec.stt.bmk=32:0,33:0,34:0,35:0,36:0,37:0,38:0,39:0,40:0,41:0,42:0,43:0,44:0,45:0,46:0,47:0,48:0,49:0,50:0,51:0,52:0,53:0,54:0,55:0,56:0,57:0,58:0,59:0,60:0,61:0,62:0,63:0,64:0,65:0,66:0,67:0,68:0,69:0,70:0,71:0,72:0,73:0,74:0,75:0,76:0,77:0,78:0,79:0";"std.tec.fordpr=1"}),"") -> 3.464690042 | O22: =IFERROR(_xll.ECONOMATICA($B11&"<XBue>","return","in the year",$R$3,,,,"decimal"),"") -> 0.2116510539 | P22: =IFERROR(_xll.ECONOMATICA($B11&"<XBue>","Premium","in the year",$R$3,,,,,,,,{"std.tec.stt.bmk=0:4923,1:0,2:3543,3:0,4:0,5:0,6:0,7:0,8:0,9:0,10:0,11:0,12:0,13:0,14:0,15:0,16:0,17:0,18:0,19:0,20:0,21:0,22:0,23:0,24:0,25:0,26:0,27:0,28:0,29:0,30:0,31:0,";"std.tec.stt.bmk=32:0,33:0,34:0,35:0,36:0,37:0,38:0,39:0,40:0,41:0,42:0,43:0,44:0,45:0,46:0,47:0,48:0,49:0,50:0,51:0,52:0,53:0,54:0,55:0,56:0,57:0,58:0,59:0,60:0,61:0,62:0,63:0,64:0,65:0,66:0,67:0,68:0,69:0,70:0,71:0,72:0,73:0,74:0,75:0,76:0,77:0,78:0,79:0";"std.tec.fordpr=1"}),"") -> 13.38319928 | Q22: =IFERROR(_xll.ECONOMATICA($B11&"<XBue>","return","12m",$R$3,,,,"decimal"),"") -> 0.4755793226 | R22: =IFERROR(_xll.ECONOMATICA($B11&"<XBue>","Premium","12m",$R$3,,,,,,,,{"std.tec.stt.bmk=0:4923,1:0,2:3543,3:0,4:0,5:0,6:0,7:0,8:0,9:0,10:0,11:0,12:0,13:0,14:0,15:0,16:0,17:0,18:0,19:0,20:0,21:0,22:0,23:0,24:0,25:0,26:0,27:0,28:0,29:0,30:0,31:0,";"std.tec.stt.bmk=32:0,33:0,34:0,35:0,36:0,37:0,38:0,39:0,40:0,41:0,42:0,43:0,44:0,45:0,46:0,47:0,48:0,49:0,50:0,51:0,52:0,53:0,54:0,55:0,56:0,57:0,58:0,59:0,60:0,61:0,62:0,63:0,64:0,65:0,66:0,67:0,68:0,69:0,70:0,71:0,72:0,73:0,74:0,75:0,76:0,77:0,78:0,79:0";"std.tec.fordpr=1"}),"") -> 9.547964282
B23: Ternium Argentina | D23: =IFERROR(_xll.ECONOMATICA(B12&"<XBSP>","Class"),"") ->  | E23: =IFERROR(_xll.ECONOMATICA($B12&"<XBue>","Volatility","12m",$R$3),"") -> 58.34255506 | F23: =IFERROR(_xll.ECONOMATICA($B12&"<XBue>","Sharpe","12m",$R$3),"") -> 2.20041911 | G23: =IFERROR(_xll.ECONOMATICA($B12&"<XBue>","VAR %","1y",$R$3,,,,,"false","false",,{"std.tec.ppr.per=2"}),"") -> 27.51357546 | H23: =IFERROR(_xll.ECONOMATICA($B12&"<XBue>","Beta","60m",$R$3,,,,,"false","false"),"") -> 0.7759504735 | I23: =IFERROR(_xll.ECONOMATICA($B12&"<XBue>","Correlation","60m",$R$3,,,,,"false","false"),"") -> 0.7728762945 | J23: =IFERROR(_xll.ECONOMATICA($B12&"<XBue>","Number Premium","1Y",$R$3,,,,,"false","false",,{"std.tec.stt.bmk=0:4923,1:0,2:3543,3:0,4:0,5:0,6:0,7:0,8:0,9:0,10:0,11:0,12:0,13:0,14:0,15:0,16:0,17:0,18:0,19:0,20:0,21:0,22:0,23:0,24:0,25:0,26:0,27:0,28:0,29:0,30:0,31:0,";"std.tec.stt.bmk=32:0,33:0,34:0,35:0,36:0,37:0,38:0,39:0,40:0,41:0,42:0,43:0,44:0,45:0,46:0,47:0,48:0,49:0,50:0,51:0,52:0,53:0,54:0,55:0,56:0,57:0,58:0,59:0,60:0,61:0,62:0,63:0,64:0,65:0,66:0,67:0,68:0,69:0,70:0,71:0,72:0,73:0,74:0,75:0,76:0,77:0,78:0,79:0";"std.tec.dret.noprc=true"}),"") -> 6 | K23: =IFERROR(_xll.ECONOMATICA($B12&"<XBue>","Number Premium","1Y",$R$3,,,,,"false","false",,{"std.tec.stt.bmk=0:4923,1:0,2:3543,3:0,4:0,5:0,6:0,7:0,8:0,9:0,10:0,11:0,12:0,13:0,14:0,15:0,16:0,17:0,18:0,19:0,20:0,21:0,22:0,23:0,24:0,25:0,26:0,27:0,28:0,29:0,30:0,31:0,";"std.tec.stt.bmk=32:0,33:0,34:0,35:0,36:0,37:0,38:0,39:0,40:0,41:0,42:0,43:0,44:0,45:0,46:0,47:0,48:0,49:0,50:0,51:0,52:0,53:0,54:0,55:0,56:0,57:0,58:0,59:0,60:0,61:0,62:0,63:0,64:0,65:0,66:0,67:0,68:0,69:0,70:0,71:0,72:0,73:0,74:0,75:0,76:0,77:0,78:0,79:0";"std.tec.dret.cmp=-1";"std.tec.dret.noprc=true"}),"") -> 6 | L23: =IFERROR(_xll.ECONOMATICA($B12&"<XBue>","return",,$R$3,,,,"decimal"),"") -> 0.04587155963 | M23: =IFERROR(_xll.ECONOMATICA($B12&"<XBue>","return","1m",$R$3,,,,"decimal"),"") -> 0.2527472527 | N23: =IFERROR(_xll.ECONOMATICA($B12&"<XBue>","Premium","1m",$R$3,,,,,,,,{"std.tec.stt.bmk=0:4923,1:0,2:3543,3:0,4:0,5:0,6:0,7:0,8:0,9:0,10:0,11:0,12:0,13:0,14:0,15:0,16:0,17:0,18:0,19:0,20:0,21:0,22:0,23:0,24:0,25:0,26:0,27:0,28:0,29:0,30:0,31:0,";"std.tec.stt.bmk=32:0,33:0,34:0,35:0,36:0,37:0,38:0,39:0,40:0,41:0,42:0,43:0,44:0,45:0,46:0,47:0,48:0,49:0,50:0,51:0,52:0,53:0,54:0,55:0,56:0,57:0,58:0,59:0,60:0,61:0,62:0,63:0,64:0,65:0,66:0,67:0,68:0,69:0,70:0,71:0,72:0,73:0,74:0,75:0,76:0,77:0,78:0,79:0";"std.tec.fordpr=1"}),"") -> 18.83500746 | O23: =IFERROR(_xll.ECONOMATICA($B12&"<XBue>","return","in the year",$R$3,,,,"decimal"),"") -> 1 | P23: =IFERROR(_xll.ECONOMATICA($B12&"<XBue>","Premium","in the year",$R$3,,,,,,,,{"std.tec.stt.bmk=0:4923,1:0,2:3543,3:0,4:0,5:0,6:0,7:0,8:0,9:0,10:0,11:0,12:0,13:0,14:0,15:0,16:0,17:0,18:0,19:0,20:0,21:0,22:0,23:0,24:0,25:0,26:0,27:0,28:0,29:0,30:0,31:0,";"std.tec.stt.bmk=32:0,33:0,34:0,35:0,36:0,37:0,38:0,39:0,40:0,41:0,42:0,43:0,44:0,45:0,46:0,47:0,48:0,49:0,50:0,51:0,52:0,53:0,54:0,55:0,56:0,57:0,58:0,59:0,60:0,61:0,62:0,63:0,64:0,65:0,66:0,67:0,68:0,69:0,70:0,71:0,72:0,73:0,74:0,75:0,76:0,77:0,78:0,79:0";"std.tec.fordpr=1"}),"") -> 92.21809389 | Q23: =IFERROR(_xll.ECONOMATICA($B12&"<XBue>","return","12m",$R$3,,,,"decimal"),"") -> 1.326530612 | R23: =IFERROR(_xll.ECONOMATICA($B12&"<XBue>","Premium","12m",$R$3,,,,,,,,{"std.tec.stt.bmk=0:4923,1:0,2:3543,3:0,4:0,5:0,6:0,7:0,8:0,9:0,10:0,11:0,12:0,13:0,14:0,15:0,16:0,17:0,18:0,19:0,20:0,21:0,22:0,23:0,24:0,25:0,26:0,27:0,28:0,29:0,30:0,31:0,";"std.tec.stt.bmk=32:0,33:0,34:0,35:0,36:0,37:0,38:0,39:0,40:0,41:0,42:0,43:0,44:0,45:0,46:0,47:0,48:0,49:0,50:0,51:0,52:0,53:0,54:0,55:0,56:0,57:0,58:0,59:0,60:0,61:0,62:0,63:0,64:0,65:0,66:0,67:0,68:0,69:0,70:0,71:0,72:0,73:0,74:0,75:0,76:0,77:0,78:0,79:0";"std.tec.fordpr=1"}),"") -> 94.64309324
B24: Ypf S.A. | D24: =IFERROR(_xll.ECONOMATICA(B13&"<XBSP>","Class"),"") ->  | E24: =IFERROR(_xll.ECONOMATICA($B13&"<XBue>","Volatility","12m",$R$3),"") -> 77.7005165 | F24: =IFERROR(_xll.ECONOMATICA($B13&"<XBue>","Sharpe","12m",$R$3),"") -> -0.2678800208 | G24: =IFERROR(_xll.ECONOMATICA($B13&"<XBue>","VAR %","1y",$R$3,,,,,"false","false",,{"std.tec.ppr.per=2"}),"") -> 35.92588549 | H24: =IFERROR(_xll.ECONOMATICA($B13&"<XBue>","Beta","60m",$R$3,,,,,"false","false"),"") -> 0.957805044 | I24: =IFERROR(_xll.ECONOMATICA($B13&"<XBue>","Correlation","60m",$R$3,,,,,"false","false"),"") -> 0.817409786 | J24: =IFERROR(_xll.ECONOMATICA($B13&"<XBue>","Number Premium","1Y",$R$3,,,,,"false","false",,{"std.tec.stt.bmk=0:4923,1:0,2:3543,3:0,4:0,5:0,6:0,7:0,8:0,9:0,10:0,11:0,12:0,13:0,14:0,15:0,16:0,17:0,18:0,19:0,20:0,21:0,22:0,23:0,24:0,25:0,26:0,27:0,28:0,29:0,30:0,31:0,";"std.tec.stt.bmk=32:0,33:0,34:0,35:0,36:0,37:0,38:0,39:0,40:0,41:0,42:0,43:0,44:0,45:0,46:0,47:0,48:0,49:0,50:0,51:0,52:0,53:0,54:0,55:0,56:0,57:0,58:0,59:0,60:0,61:0,62:0,63:0,64:0,65:0,66:0,67:0,68:0,69:0,70:0,71:0,72:0,73:0,74:0,75:0,76:0,77:0,78:0,79:0";"std.tec.dret.noprc=true"}),"") -> 3 | K24: =IFERROR(_xll.ECONOMATICA($B13&"<XBue>","Number Premium","1Y",$R$3,,,,,"false","false",,{"std.tec.stt.bmk=0:4923,1:0,2:3543,3:0,4:0,5:0,6:0,7:0,8:0,9:0,10:0,11:0,12:0,13:0,14:0,15:0,16:0,17:0,18:0,19:0,20:0,21:0,22:0,23:0,24:0,25:0,26:0,27:0,28:0,29:0,30:0,31:0,";"std.tec.stt.bmk=32:0,33:0,34:0,35:0,36:0,37:0,38:0,39:0,40:0,41:0,42:0,43:0,44:0,45:0,46:0,47:0,48:0,49:0,50:0,51:0,52:0,53:0,54:0,55:0,56:0,57:0,58:0,59:0,60:0,61:0,62:0,63:0,64:0,65:0,66:0,67:0,68:0,69:0,70:0,71:0,72:0,73:0,74:0,75:0,76:0,77:0,78:0,79:0";"std.tec.dret.cmp=-1";"std.tec.dret.noprc=true"}),"") -> 9 | L24: =IFERROR(_xll.ECONOMATICA($B13&"<XBue>","return",,$R$3,,,,"decimal"),"") -> 0.007925636008 | M24: =IFERROR(_xll.ECONOMATICA($B13&"<XBue>","return","1m",$R$3,,,,"decimal"),"") -> -0.04567352233 | N24: =IFERROR(_xll.ECONOMATICA($B13&"<XBue>","Premium","1m",$R$3,,,,,,,,{"std.tec.stt.bmk=0:4923,1:0,2:3543,3:0,4:0,5:0,6:0,7:0,8:0,9:0,10:0,11:0,12:0,13:0,14:0,15:0,16:0,17:0,18:0,19:0,20:0,21:0,22:0,23:0,24:0,25:0,26:0,27:0,28:0,29:0,30:0,31:0,";"std.tec.stt.bmk=32:0,33:0,34:0,35:0,36:0,37:0,38:0,39:0,40:0,41:0,42:0,43:0,44:0,45:0,46:0,47:0,48:0,49:0,50:0,51:0,52:0,53:0,54:0,55:0,56:0,57:0,58:0,59:0,60:0,61:0,62:0,63:0,64:0,65:0,66:0,67:0,68:0,69:0,70:0,71:0,72:0,73:0,74:0,75:0,76:0,77:0,78:0,79:0";"std.tec.fordpr=1"}),"") -> -11.00707005 | O24: =IFERROR(_xll.ECONOMATICA($B13&"<XBue>","return","in the year",$R$3,,,,"decimal"),"") -> -0.3991483901 | P24: =IFERROR(_xll.ECONOMATICA($B13&"<XBue>","Premium","in the year",$R$3,,,,,,,,{"std.tec.stt.bmk=0:4923,1:0,2:3543,3:0,4:0,5:0,6:0,7:0,8:0,9:0,10:0,11:0,12:0,13:0,14:0,15:0,16:0,17:0,18:0,19:0,20:0,21:0,22:0,23:0,24:0,25:0,26:0,27:0,28:0,29:0,30:0,31:0,";"std.tec.stt.bmk=32:0,33:0,34:0,35:0,36:0,37:0,38:0,39:0,40:0,41:0,42:0,43:0,44:0,45:0,46:0,47:0,48:0,49:0,50:0,51:0,52:0,53:0,54:0,55:0,56:0,57:0,58:0,59:0,60:0,61:0,62:0,63:0,64:0,65:0,66:0,67:0,68:0,69:0,70:0,71:0,72:0,73:0,74:0,75:0,76:0,77:0,78:0,79:0";"std.tec.fordpr=1"}),"") -> -47.69674512 | Q24: =IFERROR(_xll.ECONOMATICA($B13&"<XBue>","return","12m",$R$3,,,,"decimal"),"") -> -0.2863378135 | R24: =IFERROR(_xll.ECONOMATICA($B13&"<XBue>","Premium","12m",$R$3,,,,,,,,{"std.tec.stt.bmk=0:4923,1:0,2:3543,3:0,4:0,5:0,6:0,7:0,8:0,9:0,10:0,11:0,12:0,13:0,14:0,15:0,16:0,17:0,18:0,19:0,20:0,21:0,22:0,23:0,24:0,25:0,26:0,27:0,28:0,29:0,30:0,31:0,";"std.tec.stt.bmk=32:0,33:0,34:0,35:0,36:0,37:0,38:0,39:0,40:0,41:0,42:0,43:0,44:0,45:0,46:0,47:0,48:0,49:0,50:0,51:0,52:0,53:0,54:0,55:0,56:0,57:0,58:0,59:0,60:0,61:0,62:0,63:0,64:0,65:0,66:0,67:0,68:0,69:0,70:0,71:0,72:0,73:0,74:0,75:0,76:0,77:0,78:0,79:0";"std.tec.fordpr=1"}),"") -> -66.64374933
B25: MERVAL | E25: =IFERROR(_xll.ECONOMATICA($B25&"<XBue>","Volatility","12m",$R$3),"") -> 55.08414541 | F25: =IFERROR(_xll.ECONOMATICA($B25&"<XBue>","Sharpe","12m",$R$3),"") -> 0.5809488359 | G25: =IFERROR(_xll.ECONOMATICA($B25&"<XBue>","VAR %","1y",$R$3,,,,,"false","false",,{"std.tec.ppr.per=2"}),"") -> 25.84393829 | H25: =IFERROR(_xll.ECONOMATICA($B25&"<XBue>","Beta","60m",$R$3,,,,,"false","false"),"") -> 1 | I25: =IFERROR(_xll.ECONOMATICA($B25&"<XBue>","Correlation","60m",$R$3,,,,,"false","false"),"") -> 1 | J25: =IFERROR(_xll.ECONOMATICA($B25&"<XBue>","Number Premium","1Y",$R$3,,,,,"false","false",,{"std.tec.stt.bmk=0:4923,1:0,2:3543,3:0,4:0,5:0,6:0,7:0,8:0,9:0,10:0,11:0,12:0,13:0,14:0,15:0,16:0,17:0,18:0,19:0,20:0,21:0,22:0,23:0,24:0,25:0,26:0,27:0,28:0,29:0,30:0,31:0,";"std.tec.stt.bmk=32:0,33:0,34:0,35:0,36:0,37:0,38:0,39:0,40:0,41:0,42:0,43:0,44:0,45:0,46:0,47:0,48:0,49:0,50:0,51:0,52:0,53:0,54:0,55:0,56:0,57:0,58:0,59:0,60:0,61:0,62:0,63:0,64:0,65:0,66:0,67:0,68:0,69:0,70:0,71:0,72:0,73:0,74:0,75:0,76:0,77:0,78:0,79:0";"std.tec.dret.noprc=true"}),"") -> 0 | K25: =IFERROR(_xll.ECONOMATICA($B25&"<XBue>","Number Premium","1Y",$R$3,,,,,"false","false",,{"std.tec.stt.bmk=0:4923,1:0,2:3543,3:0,4:0,5:0,6:0,7:0,8:0,9:0,10:0,11:0,12:0,13:0,14:0,15:0,16:0,17:0,18:0,19:0,20:0,21:0,22:0,23:0,24:0,25:0,26:0,27:0,28:0,29:0,30:0,31:0,";"std.tec.stt.bmk=32:0,33:0,34:0,35:0,36:0,37:0,38:0,39:0,40:0,41:0,42:0,43:0,44:0,45:0,46:0,47:0,48:0,49:0,50:0,51:0,52:0,53:0,54:0,55:0,56:0,57:0,58:0,59:0,60:0,61:0,62:0,63:0,64:0,65:0,66:0,67:0,68:0,69:0,70:0,71:0,72:0,73:0,74:0,75:0,76:0,77:0,78:0,79:0";"std.tec.dret.cmp=-1";"std.tec.dret.noprc=true"}),"") -> 0 | L25: =IFERROR(_xll.ECONOMATICA($B25&"<XBue>","return",,$R$3,,,,"decimal"),"") -> 0.03173473574 | M25: =IFERROR(_xll.ECONOMATICA($B25&"<XBue>","return","1m",$R$3,,,,"decimal"),"") -> 0.06439717818 | N25: =IFERROR(_xll.ECONOMATICA($B25&"<XBue>","Premium","1m",$R$3,,,,,,,,{"std.tec.stt.bmk=0:4923,1:0,2:3543,3:0,4:0,5:0,6:0,7:0,8:0,9:0,10:0,11:0,12:0,13:0,14:0,15:0,16:0,17:0,18:0,19:0,20:0,21:0,22:0,23:0,24:0,25:0,26:0,27:0,28:0,29:0,30:0,31:0,";"std.tec.stt.bmk=32:0,33:0,34:0,35:0,36:0,37:0,38:0,39:0,40:0,41:0,42:0,43:0,44:0,45:0,46:0,47:0,48:0,49:0,50:0,51:0,52:0,53:0,54:0,55:0,56:0,57:0,58:0,59:0,60:0,61:0,62:0,63:0,64:0,65:0,66:0,67:0,68:0,69:0,70:0,71:0,72:0,73:0,74:0,75:0,76:0,77:0,78:0,79:0";"std.tec.fordpr=1"}),"") -> 0 | O25: =IFERROR(_xll.ECONOMATICA($B25&"<XBue>","return","in the year",$R$3,,,,"decimal"),"") -> 0.07781906108 | P25: =IFERROR(_xll.ECONOMATICA($B25&"<XBue>","Premium","in the year",$R$3,,,,,,,,{"std.tec.stt.bmk=0:4923,1:0,2:3543,3:0,4:0,5:0,6:0,7:0,8:0,9:0,10:0,11:0,12:0,13:0,14:0,15:0,16:0,17:0,18:0,19:0,20:0,21:0,22:0,23:0,24:0,25:0,26:0,27:0,28:0,29:0,30:0,31:0,";"std.tec.stt.bmk=32:0,33:0,34:0,35:0,36:0,37:0,38:0,39:0,40:0,41:0,42:0,43:0,44:0,45:0,46:0,47:0,48:0,49:0,50:0,51:0,52:0,53:0,54:0,55:0,56:0,57:0,58:0,59:0,60:0,61:0,62:0,63:0,64:0,65:0,66:0,67:0,68:0,69:0,70:0,71:0,72:0,73:0,74:0,75:0,76:0,77:0,78:0,79:0";"std.tec.fordpr=1"}),"") -> 0 | Q25: =IFERROR(_xll.ECONOMATICA($B25&"<XBue>","return","12m",$R$3,,,,"decimal"),"") -> 0.3800996798 | R25: =IFERROR(_xll.ECONOMATICA($B25&"<XBue>","Premium","12m",$R$3,,,,,,,,{"std.tec.stt.bmk=0:4923,1:0,2:3543,3:0,4:0,5:0,6:0,7:0,8:0,9:0,10:0,11:0,12:0,13:0,14:0,15:0,16:0,17:0,18:0,19:0,20:0,21:0,22:0,23:0,24:0,25:0,26:0,27:0,28:0,29:0,30:0,31:0,";"std.tec.stt.bmk=32:0,33:0,34:0,35:0,36:0,37:0,38:0,39:0,40:0,41:0,42:0,43:0,44:0,45:0,46:0,47:0,48:0,49:0,50:0,51:0,52:0,53:0,54:0,55:0,56:0,57:0,58:0,59:0,60:0,61:0,62:0,63:0,64:0,65:0,66:0,67:0,68:0,69:0,70:0,71:0,72:0,73:0,74:0,75:0,76:0,77:0,78:0,79:0";"std.tec.fordpr=1"}),"") -> 0
J26: =IFERROR(_xll.ECONOMATICA($B15&"<XBue>","Number Premium","1Y",$R$3,,,,,"false","false",,{"std.tec.stt.bmk=0:4923,1:0,2:3543,3:0,4:0,5:0,6:0,7:0,8:0,9:0,10:0,11:0,12:0,13:0,14:0,15:0,16:0,17:0,18:0,19:0,20:0,21:0,22:0,23:0,24:0,25:0,26:0,27:0,28:0,29:0,30:0,31:0,";"std.tec.stt.bmk=32:0,33:0,34:0,35:0,36:0,37:0,38:0,39:0,40:0,41:0,42:0,43:0,44:0,45:0,46:0,47:0,48:0,49:0,50:0,51:0,52:0,53:0,54:0,55:0,56:0,57:0,58:0,59:0,60:0,61:0,62:0,63:0,64:0,65:0,66:0,67:0,68:0,69:0,70:0,71:0,72:0,73:0,74:0,75:0,76:0,77:0,78:0,79:0";"std.tec.dret.noprc=true"}),"") -> 
B27: Múltiplos e Indicadores - 12 meses | Q27: Fecha de Balance:
B28: Nombre | D28: Data da Última Cotação | E28: Valor de Mercado | F28: P / VLA | G28: P / U | H28: Dividend Yield 12M | I28: Dividendos por Acción 12M | J28: Fecha de Balance | K28: Meses Resultados | L28: Ganancia Neta | M28: Margen Neto | N28: EPS | O28: VLA | P28: ROE | Q28: ROA | R28: Liquidez Corrente
B29: =C6 -> Aluar | D29: =IFERROR(_xll.ECONOMATICA($B6&"<XBue>","Date of Last Quote"),"") -> 2020-10-29 | E29: =IFERROR(_xll.ECONOMATICA($B6&"<XBue>","MarketCapitaliz","12m",$R$3),"") -> 136640000000 | F29: =IFERROR(_xll.ECONOMATICA($B6&"<XBue>","P/BV","12m",$R$3),"") -> 4.025155794 | G29: =IFERROR(_xll.ECONOMATICA($B6&"<XBue>","P/E","12m",$R$3),"") -> -37.35544358 | H29: =IFERROR(_xll.ECONOMATICA($B6&"<XBue>","Div Yld (start)","12m",$R$3,,,,"decimal"),"") -> 0.01799660441 | I29: =IFERROR(_xll.ECONOMATICA($B6&"<XBUE>","Divid per Share","12m",$R$3),"") -> 0.53 | J29: =IFERROR(_xll.ECONOMATICA($B6&"<XBue>","Fin Statm Date",,IF($R$27="","latest",$R$27)),"") -> 2020-06-30 | K29: =IFERROR(_xll.ECONOMATICA($B6&"<XBue>","PerTyp","In fiscal year",IF($R$27="","latest",$R$27)),"") -> 12 | L29: =IFERROR(_xll.ECONOMATICA($B6&"<XBue>","Net Income","In fiscal year",IF($R$27="","latest",$R$27)),"") -> -3657833689 | M29: =IFERROR(_xll.ECONOMATICA($B6&"<XBue>","Net Margin","in fiscal year",IF($R$27="","latest",$R$27),,,,"decimal"),"") -> -0.0533598401 | N29: =IFERROR(_xll.ECONOMATICA($B6&"<XBue>","EPS","12m",IF($R$27="","latest",$R$27)),"") -> -1.306369175 | O29: =IFERROR(_xll.ECONOMATICA($B6&"<XBue>","BVperShare",,IF($R$27="","latest",$R$27)),"") -> 12.12375433 | P29: =IFERROR(_xll.ECONOMATICA($B6&"<XBue>","ROE (avg)","12m",IF($R$27="","latest",$R$27),,,,"decimal"),"") -> -0.1045740751 | Q29: =IFERROR(_xll.ECONOMATICA($B6&"<XBue>","ROA","12m",IF($R$27="","latest",$R$27),,,,"decimal"),"") -> -0.04176910536 | R29: =IFERROR(_xll.ECONOMATICA($B6&"<XBue>","CurrRatio",,IF($R$27="","latest",$R$27)),"") -> 1.89368149
B30: Banco Macro S.A. | D30: =IFERROR(_xll.ECONOMATICA($B7&"<XBue>","Date of Last Quote"),"") -> 2020-10-29 | E30: =IFERROR(_xll.ECONOMATICA($B7&"<XBue>","MarketCapitaliz","12m",$R$3),"") -> 1.22895257e+11 | F30: =IFERROR(_xll.ECONOMATICA($B7&"<XBue>","P/BV","12m",$R$3),"") -> 1.030997624 | G30: =IFERROR(_xll.ECONOMATICA($B7&"<XBue>","P/E","12m",$R$3),"") -> 3.097648068 | H30: =IFERROR(_xll.ECONOMATICA($B7&"<XBue>","Div Yld (start)","12m",$R$3,,,,"decimal"),"") -> 0 | I30: =IFERROR(_xll.ECONOMATICA($B7&"<XBUE>","Divid per Share","12m",$R$3),"") -> 0 | J30: =IFERROR(_xll.ECONOMATICA($B7&"<XBue>","Fin Statm Date",,IF($R$27="","latest",$R$27)),"") -> 2020-06-30 | K30: =IFERROR(_xll.ECONOMATICA($B7&"<XBue>","PerTyp","In fiscal year",IF($R$27="","latest",$R$27)),"") -> 6 | L30: =IFERROR(_xll.ECONOMATICA($B7&"<XBue>","Net Income","In fiscal year",IF($R$27="","latest",$R$27)),"") -> 1.3850037e+10 | M30: =IFERROR(_xll.ECONOMATICA($B7&"<XBue>","Net Margin","in fiscal year",IF($R$27="","latest",$R$27),,,,"decimal"),"") -> 0.191514068 | N30: =IFERROR(_xll.ECONOMATICA($B7&"<XBue>","EPS","12m",IF($R$27="","latest",$R$27)),"") -> 62.04707436 | O30: =IFERROR(_xll.ECONOMATICA($B7&"<XBue>","BVperShare",,IF($R$27="","latest",$R$27)),"") -> 186.4213801 | P30: =IFERROR(_xll.ECONOMATICA($B7&"<XBue>","ROE (avg)","12m",IF($R$27="","latest",$R$27),,,,"decimal"),"") -> 0.4361219079 | Q30: =IFERROR(_xll.ECONOMATICA($B7&"<XBue>","ROA","12m",IF($R$27="","latest",$R$27),,,,"decimal"),"") -> 0.06344112368 | R30: =IFERROR(_xll.ECONOMATICA($B7&"<XBue>","CurrRatio",,IF($R$27="","latest",$R$27)),"") -> 
B31: Bbva S. A. | D31: =IFERROR(_xll.ECONOMATICA($B8&"<XBue>","Date of Last Quote"),"") -> 2020-10-29 | E31: =IFERROR(_xll.ECONOMATICA($B8&"<XBue>","MarketCapitaliz","12m",$R$3),"") -> 7.611742357e+10 | F31: =IFERROR(_xll.ECONOMATICA($B8&"<XBue>","P/BV","12m",$R$3),"") -> 0.8177896407 | G31: =IFERROR(_xll.ECONOMATICA($B8&"<XBue>","P/E","12m",$R$3),"") -> 3.350007628 | H31: =IFERROR(_xll.ECONOMATICA($B8&"<XBue>","Div Yld (start)","12m",$R$3,,,,"decimal"),"") -> 0 | I31: =IFERROR(_xll.ECONOMATICA($B8&"<XBUE>","Divid per Share","12m",$R$3),"") -> 0 | J31: =IFERROR(_xll.ECONOMATICA($B8&"<XBue>","Fin Statm Date",,IF($R$27="","latest",$R$27)),"") -> 2020-06-30 | K31: =IFERROR(_xll.ECONOMATICA($B8&"<XBue>","PerTyp","In fiscal year",IF($R$27="","latest",$R$27)),"") -> 6 | L31: =IFERROR(_xll.ECONOMATICA($B8&"<XBue>","Net Income","In fiscal year",IF($R$27="","latest",$R$27)),"") -> 5753929000 | M31: =IFERROR(_xll.ECONOMATICA($B8&"<XBue>","Net Margin","in fiscal year",IF($R$27="","latest",$R$27),,,,"decimal"),"") -> 0.09707271869 | N31: =IFERROR(_xll.ECONOMATICA($B8&"<XBue>","EPS","12m",IF($R$27="","latest",$R$27)),"") -> 37.08946779 | O31: =IFERROR(_xll.ECONOMATICA($B8&"<XBue>","BVperShare",,IF($R$27="","latest",$R$27)),"") -> 151.9339373 | P31: =IFERROR(_xll.ECONOMATICA($B8&"<XBue>","ROE (avg)","12m",IF($R$27="","latest",$R$27),,,,"decimal"),"") -> 0.3225370648 | Q31: =IFERROR(_xll.ECONOMATICA($B8&"<XBue>","ROA","12m",IF($R$27="","latest",$R$27),,,,"decimal"),"") -> 0.04276806517 | R31: =IFERROR(_xll.ECONOMATICA($B8&"<XBue>","CurrRatio",,IF($R$27="","latest",$R$27)),"") -> 
B32: Grupo Fin. Galicia | D32: =IFERROR(_xll.ECONOMATICA($B9&"<XBue>","Date of Last Quote"),"") -> 2020-10-29 | E32: =IFERROR(_xll.ECONOMATICA($B9&"<XBue>","MarketCapitaliz","12m",$R$3),"") -> 1.434611802e+11 | F32: =IFERROR(_xll.ECONOMATICA($B9&"<XBue>","P/BV","12m",$R$3),"") -> 1.017350183 | G32: =IFERROR(_xll.ECONOMATICA($B9&"<XBue>","P/E","12m",$R$3),"") -> 4.458238141 | H32: =IFERROR(_xll.ECONOMATICA($B9&"<XBue>","Div Yld (start)","12m",$R$3,,,,"decimal"),"") -> 0.01385473252 | I32: =IFERROR(_xll.ECONOMATICA($B9&"<XBUE>","Divid per Share","12m",$R$3),"") -> 1.191506997 | J32: =IFERROR(_xll.ECONOMATICA($B9&"<XBue>","Fin Statm Date",,IF($R$27="","latest",$R$27)),"") -> 2020-06-30 | K32: =IFERROR(_xll.ECONOMATICA($B9&"<XBue>","PerTyp","In fiscal year",IF($R$27="","latest",$R$27)),"") -> 6 | L32: =IFERROR(_xll.ECONOMATICA($B9&"<XBue>","Net Income","In fiscal year",IF($R$27="","latest",$R$27)),"") -> 14404895000 | M32: =IFERROR(_xll.ECONOMATICA($B9&"<XBue>","Net Margin","in fiscal year",IF($R$27="","latest",$R$27),,,,"decimal"),"") -> 0.1602256198 | N32: =IFERROR(_xll.ECONOMATICA($B9&"<XBue>","EPS","12m",IF($R$27="","latest",$R$27)),"") -> 22.55375259 | O32: =IFERROR(_xll.ECONOMATICA($B9&"<XBue>","BVperShare",,IF($R$27="","latest",$R$27)),"") -> 98.83519138 | P32: =IFERROR(_xll.ECONOMATICA($B9&"<XBue>","ROE (avg)","12m",IF($R$27="","latest",$R$27),,,,"decimal"),"") -> 0.2998550424 | Q32: =IFERROR(_xll.ECONOMATICA($B9&"<XBue>","ROA","12m",IF($R$27="","latest",$R$27),,,,"decimal"),"") -> 0.0369225856 | R32: =IFERROR(_xll.ECONOMATICA($B9&"<XBue>","CurrRatio",,IF($R$27="","latest",$R$27)),"") -> 
B33: Pampa Energia S.A. | D33: =IFERROR(_xll.ECONOMATICA($B10&"<XBue>","Date of Last Quote"),"") -> 2020-10-29 | E33: =IFERROR(_xll.ECONOMATICA($B10&"<XBue>","MarketCapitaliz","12m",$R$3),"") -> 1.100102492e+11 | F33: =IFERROR(_xll.ECONOMATICA($B10&"<XBue>","P/BV","12m",$R$3),"") -> 0.8417390943 | G33: =IFERROR(_xll.ECONOMATICA($B10&"<XBue>","P/E","12m",$R$3),"") -> 25.97185869 | H33: =IFERROR(_xll.ECONOMATICA($B10&"<XBue>","Div Yld (start)","12m",$R$3,,,,"decimal"),"") -> 0 | I33: =IFERROR(_xll.ECONOMATICA($B10&"<XBUE>","Divid per Share","12m",$R$3),"") -> 0 | J33: =IFERROR(_xll.ECONOMATICA($B10&"<XBue>","Fin Statm Date",,IF($R$27="","latest",$R$27)),"") -> 2020-06-30 | K33: =IFERROR(_xll.ECONOMATICA($B10&"<XBue>","PerTyp","In fiscal year",IF($R$27="","latest",$R$27)),"") -> 6 | L33: =IFERROR(_xll.ECONOMATICA($B10&"<XBue>","Net Income","In fiscal year",IF($R$27="","latest",$R$27)),"") -> 995000000 | M33: =IFERROR(_xll.ECONOMATICA($B10&"<XBue>","Net Margin","in fiscal year",IF($R$27="","latest",$R$27),,,,"decimal"),"") -> 0.0008497241879 | N33: =IFERROR(_xll.ECONOMATICA($B10&"<XBue>","EPS","12m",IF($R$27="","latest",$R$27)),"") -> 2.727952621 | O33: =IFERROR(_xll.ECONOMATICA($B10&"<XBue>","BVperShare",,IF($R$27="","latest",$R$27)),"") -> 84.17097468 | P33: =IFERROR(_xll.ECONOMATICA($B10&"<XBue>","ROE (avg)","12m",IF($R$27="","latest",$R$27),,,,"decimal"),"") -> 0.02366704248 | Q33: =IFERROR(_xll.ECONOMATICA($B10&"<XBue>","ROA","12m",IF($R$27="","latest",$R$27),,,,"decimal"),"") -> 0.008422189645 | R33: =IFERROR(_xll.ECONOMATICA($B10&"<XBue>","CurrRatio",,IF($R$27="","latest",$R$27)),"") -> 1.380665284
B34: Telecom Argentina S.A. | D34: =IFERROR(_xll.ECONOMATICA($B11&"<XBue>","Date of Last Quote"),"") -> 2020-10-29 | E34: =IFERROR(_xll.ECONOMATICA($B11&"<XBue>","MarketCapitaliz","12m",$R$3),"") -> 4.457057339e+11 | F34: =IFERROR(_xll.ECONOMATICA($B11&"<XBue>","P/BV","12m",$R$3),"") -> 1.282857462 | G34: =IFERROR(_xll.ECONOMATICA($B11&"<XBue>","P/E","12m",$R$3),"") -> -35.17347985 | H34: =IFERROR(_xll.ECONOMATICA($B11&"<XBue>","Div Yld (start)","12m",$R$3,,,,"decimal"),"") -> 0 | I34: =IFERROR(_xll.ECONOMATICA($B11&"<XBUE>","Divid per Share","12m",$R$3),"") -> 0 | J34: =IFERROR(_xll.ECONOMATICA($B11&"<XBue>","Fin Statm Date",,IF($R$27="","latest",$R$27)),"") -> 2020-06-30 | K34: =IFERROR(_xll.ECONOMATICA($B11&"<XBue>","PerTyp","In fiscal year",IF($R$27="","latest",$R$27)),"") -> 6 | L34: =IFERROR(_xll.ECONOMATICA($B11&"<XBue>","Net Income","In fiscal year",IF($R$27="","latest",$R$27)),"") -> 1744000000 | M34: =IFERROR(_xll.ECONOMATICA($B11&"<XBue>","Net Margin","in fiscal year",IF($R$27="","latest",$R$27),,,,"decimal"),"") -> 0.01495143262 | N34: =IFERROR(_xll.ECONOMATICA($B11&"<XBue>","EPS","12m",IF($R$27="","latest",$R$27)),"") -> -5.883694217 | O34: =IFERROR(_xll.ECONOMATICA($B11&"<XBue>","BVperShare",,IF($R$27="","latest",$R$27)),"") -> 161.3195589 | P34: =IFERROR(_xll.ECONOMATICA($B11&"<XBue>","ROE (avg)","12m",IF($R$27="","latest",$R$27),,,,"decimal"),"") -> -0.03827479353 | Q34: =IFERROR(_xll.ECONOMATICA($B11&"<XBue>","ROA","12m",IF($R$27="","latest",$R$27),,,,"decimal"),"") -> -0.01817644908 | R34: =IFERROR(_xll.ECONOMATICA($B11&"<XBue>","CurrRatio",,IF($R$27="","latest",$R$27)),"") -> 0.5973364089
B35: Ternium Argentina | D35: =IFERROR(_xll.ECONOMATICA($B12&"<XBue>","Date of Last Quote"),"") -> 2020-10-29 | E35: =IFERROR(_xll.ECONOMATICA($B12&"<XBue>","MarketCapitaliz","12m",$R$3),"") -> 2.317269234e+11 | F35: =IFERROR(_xll.ECONOMATICA($B12&"<XBue>","P/BV","12m",$R$3),"") -> 1.264692363 | G35: =IFERROR(_xll.ECONOMATICA($B12&"<XBue>","P/E","12m",$R$3),"") -> 38.84371497 | H35: =IFERROR(_xll.ECONOMATICA($B12&"<XBue>","Div Yld (start)","12m",$R$3,,,,"decimal"),"") -> 0 | I35: =IFERROR(_xll.ECONOMATICA($B12&"<XBUE>","Divid per Share","12m",$R$3),"") -> 0 | J35: =IFERROR(_xll.ECONOMATICA($B12&"<XBue>","Fin Statm Date",,IF($R$27="","latest",$R$27)),"") -> 2020-06-30 | K35: =IFERROR(_xll.ECONOMATICA($B12&"<XBue>","PerTyp","In fiscal year",IF($R$27="","latest",$R$27)),"") -> 6 | L35: =IFERROR(_xll.ECONOMATICA($B12&"<XBue>","Net Income","In fiscal year",IF($R$27="","latest",$R$27)),"") -> -641065000 | M35: =IFERROR(_xll.ECONOMATICA($B12&"<XBue>","Net Margin","in fiscal year",IF($R$27="","latest",$R$27),,,,"decimal"),"") -> -0.0147314263 | N35: =IFERROR(_xll.ECONOMATICA($B12&"<XBue>","EPS","12m",IF($R$27="","latest",$R$27)),"") -> 1.320676975 | O35: =IFERROR(_xll.ECONOMATICA($B12&"<XBue>","BVperShare",,IF($R$27="","latest",$R$27)),"") -> 40.56322429 | P35: =IFERROR(_xll.ECONOMATICA($B12&"<XBue>","ROE (avg)","12m",IF($R$27="","latest",$R$27),,,,"decimal"),"") -> 0.03998364016 | Q35: =IFERROR(_xll.ECONOMATICA($B12&"<XBue>","ROA","12m",IF($R$27="","latest",$R$27),,,,"decimal"),"") -> 0.02953943969 | R35: =IFERROR(_xll.ECONOMATICA($B12&"<XBue>","CurrRatio",,IF($R$27="","latest",$R$27)),"") -> 4.517814827
B36: Ypf S.A. | D36: =IFERROR(_xll.ECONOMATICA($B13&"<XBue>","Date of Last Quote"),"") -> 2020-10-29 | E36: =IFERROR(_xll.ECONOMATICA($B13&"<XBue>","MarketCapitaliz","12m",$R$3),"") -> 2.02575754e+11 | F36: =IFERROR(_xll.ECONOMATICA($B13&"<XBue>","P/BV","12m",$R$3),"") -> 0.3600085908 | G36: =IFERROR(_xll.ECONOMATICA($B13&"<XBue>","P/E","12m",$R$3),"") -> -1.993778404 | H36: =IFERROR(_xll.ECONOMATICA($B13&"<XBue>","Div Yld (start)","12m",$R$3,,,,"decimal"),"") -> 0 | I36: =IFERROR(_xll.ECONOMATICA($B13&"<XBUE>","Divid per Share","12m",$R$3),"") -> 0 | J36: =IFERROR(_xll.ECONOMATICA($B13&"<XBue>","Fin Statm Date",,IF($R$27="","latest",$R$27)),"") -> 2020-06-30 | K36: =IFERROR(_xll.ECONOMATICA($B13&"<XBue>","PerTyp","In fiscal year",IF($R$27="","latest",$R$27)),"") -> 6 | L36: =IFERROR(_xll.ECONOMATICA($B13&"<XBue>","Net Income","In fiscal year",IF($R$27="","latest",$R$27)),"") -> -7.8418e+10 | M36: =IFERROR(_xll.ECONOMATICA($B13&"<XBue>","Net Margin","in fiscal year",IF($R$27="","latest",$R$27),,,,"decimal"),"") -> -0.2553207366 | N36: =IFERROR(_xll.ECONOMATICA($B13&"<XBue>","EPS","12m",IF($R$27="","latest",$R$27)),"") -> -258.3286082 | O36: =IFERROR(_xll.ECONOMATICA($B13&"<XBue>","BVperShare",,IF($R$27="","latest",$R$27)),"") -> 1430.660304 | P36: =IFERROR(_xll.ECONOMATICA($B13&"<XBue>","ROE (avg)","12m",IF($R$27="","latest",$R$27),,,,"decimal"),"") -> -0.2097803429 | Q36: =IFERROR(_xll.ECONOMATICA($B13&"<XBue>","ROA","12m",IF($R$27="","latest",$R$27),,,,"decimal"),"") -> -0.0606122219 | R36: =IFERROR(_xll.ECONOMATICA($B13&"<XBue>","CurrRatio",,IF($R$27="","latest",$R$27)),"") -> 0.8698568718
B38: Retorno Acumulado | K38: Índice: | L38: MERVAL | N38: Período: | O38: D | Q38: Años de Datos: | R38: 1Y
B51: ="Riesgo x Retorno (Últimos 12M): "&TEXT(R3,"DD-MM-yy") -> Riesgo x Retorno (Últimos 12M): 29-10-20

Sheet Base_Gráficos
A1: Planilla auxiliar no modificar
A2: Gráfico de Retorno (base 100) | L2: Gráfico de Riesgo y Retorno
A3: Período do Atributo: | D3: Mínimo: | E3: =ROUNDDOWN(MIN(B$9:J$10000),-1) -> 30 | L3: Período de Atributo: | M3: 12M
A4: Início: | B4: ='Planilla Comparativa Acciones'!R3 -> 2020-10-29 | D4: Máximo: | E4: =ROUNDUP(MAX($B$9:$J$10000),-1) -> 270 | L4: Início: | M4: =B4 -> 2020-10-29
A5: Final: | B5: ='Planilla Comparativa Acciones'!R38 -> 1Y | D5: =AtualizarLimitesGrafico("Lâmina_Comparativo de Ações","Base100",E3,E4) ->  | L5: Final:
A6: Intervalo: | B6: ='Planilla Comparativa Acciones'!O38 -> D | L6: Intervalo:
A8: Fecha | B8: =Base!G3 -> ALUA | C8: =Base!G4 -> BMA | D8: =Base!G5 -> BBAR | E8: =Base!G6 -> GGAL | F8: =Base!$G7 -> PAMP | G8: =Base!$G8 -> TECO2 | H8: =Base!G$9 -> TXAR | I8: =Base!$G10 -> YPFD | J8: ='Planilla Comparativa Acciones'!L38 -> MERVAL | L8: Activo | M8: =_xll.ECONOMATICA($L$9:$L$17,"RETURN",$M$3,$M$4,,,,,"false",,"Retorno") -> Retorno | N8: =_xll.ECONOMATICA($L$9:$L$17,"risk",$M$3,$M$4,,,,,"false",,"Riesgo") -> Riesgo
A9: =_xll.ECONOMATICA($B$8,"close",$B$3,$B$4,$B$5,$B$6,,,"true","false",,{"def.defdef=7"}) -> 2019-10-29 | B9: 100 | C9: =_xll.ECONOMATICA(C8,"close",$B$3,$B$4,$B$5,$B$6,,,"FALSE","false",,{"def.defdef=7"}) -> 100 | D9: =_xll.ECONOMATICA(D8,"close",$B$3,$B$4,$B$5,$B$6,,,"FALSE","false",,{"def.defdef=7"}) -> 100 | E9: =_xll.ECONOMATICA(E8,"close",$B$3,$B$4,$B$5,$B$6,,,"FALSE","false",,{"def.defdef=7"}) -> 100 | F9: =_xll.ECONOMATICA(F8,"close",$B$3,$B$4,$B$5,$B$6,,,"FALSE","false",,{"def.defdef=7"}) -> 100 | G9: =_xll.ECONOMATICA(G8,"close",$B$3,$B$4,$B$5,$B$6,,,"FALSE","false",,{"def.defdef=7"}) -> 100 | H9: =_xll.ECONOMATICA(H8,"close",$B$3,$B$4,$B$5,$B$6,,,"FALSE","false",,{"def.defdef=7"}) -> 100 | I9: =_xll.ECONOMATICA(I8,"close",$B$3,$B$4,$B$5,$B$6,,,"FALSE","false",,{"def.defdef=7"}) -> 100 | J9: =_xll.ECONOMATICA(J8,"close",$B$3,$B$4,$B$5,$B$6,,,"FALSE","false",,{"def.defdef=7"}) -> 100 | L9: =B8 -> ALUA | M9: 68.34430239 | N9: 63.06943622
A10: 2019-10-30 | B10: 106.7911715 | C10: 101.1080332 | D10: 101.8338727 | E10: 104.244186 | F10: 105.7080132 | G10: 102.6024955 | H10: 103.1746032 | I10: 103.3116253 | J10: 104.1323185 | L10: =C8 -> BMA | M10: 6.48199446 | N10: 75.23877074
A11: 2019-10-31 | B11: 114.770798 | C11: 101.7174515 | D11: 102.1035599 | E11: 107.0930233 | F11: 109.7694841 | G11: 103.2085561 | H11: 106.5759637 | I11: 104.4824719 | J11: 107.5312959 | L11: =D8 -> BBAR | M11: 34.03451996 | N11: 76.03546871
A12: 2019-11-01 | B12: 126.6031946 | C12: 101.1080332 | D12: 102.9665588 | E12: 109.3023256 | F12: 110.5378705 | G12: 102.3885918 | H12: 113.3786848 | I12: 105.8611611 | J12: 109.8292169 | L12: =E8 -> GGAL | M12: 18.2490539 | N12: 76.11995569
A13: 2019-11-04 | B13: 129.3629373 | C13: 106.7867036 | D13: 107.8748652 | E13: 117.9651163 | F13: 116.0263447 | G13: 106.5597148 | H13: 116.7800454 | I13: 108.3206318 | J13: 114.5474155 | L13: =F8 -> PAMP | M13: 55.54335895 | N13: 63.78152914
A14: 2019-11-05 | B14: 124.5333876 | C14: 105.8171745 | D14: 107.3894283 | E14: 116.9186047 | F14: 114.2700329 | G14: 107.3440285 | H14: 111.5646259 | I14: 108.0019399 | J14: 113.2919537 | L14: =G8 -> TECO2 | M14: 47.55793226 | N14: 59.08454286
A15: 2019-11-06 | B15: 120.5662576 | C15: 103.3240997 | D15: 101.2944984 | E15: 112.3837209 | F15: 108.4522503 | G15: 104.5276292 | H15: 107.7097506 | I15: 102.4594707 | J15: 109.0839228 | L15: =H8 -> TXAR | M15: 132.6530612 | N15: 58.11574462
A16: 2019-11-07 | B16: 118.3239666 | C16: 104.5152355 | D16: 101.6720604 | E16: 116.744186 | F16: 108.0131723 | G16: 103.7433155 | H16: 108.3900227 | I16: 104.3161979 | J16: 110.216905 | L16: =I8 -> YPFD | M16: -28.63378135 | N16: 75.88470607
A17: 2019-11-08 | B17: 106.7675442 | C17: 101.6897507 | D17: 98.65156419 | E17: 113.255814 | F17: 97.80461032 | G17: 100.57041 | H17: 104.30839 | I17: 102.882084 | J17: 104.875984 | L17: =J8 -> MERVAL | M17: 38.00996798 | N17: 54.58904169
A18: 2019-11-11 | B18: 112.2870296 | C18: 105.4293629 | D18: 96.27831715 | E18: 112.5581395 | F18: 92.20636663 | G18: 99.18003565 | H18: 106.8027211 | I18: 99.20327006 | J18: 103.4187351
A19: 2019-11-12 | B19: 113.3219331 | C19: 106.2049861 | D19: 91.53182309 | E19: 108.255814 | F19: 94.18221734 | G19: 100 | H19: 104.5351474 | I19: 98.22640987 | J19: 102.7222669
A20: 2019-11-13 | B20: 111.9420617 | C20: 104.2936288 | D20: 89.96763754 | E20: 103.4302326 | F20: 89.46212953 | G20: 95.93582888 | H20: 100.9070295 | I20: 95.33046972 | J20: 99.37469657
A21: 2019-11-14 | B21: 106.9400282 | C21: 97.75623269 | D21: 87.54045307 | E21: 98.37209302 | F21: 85.18111965 | G21: 93.40463458 | H21: 96.14512472 | I21: 96.53595677 | J21: 95.31557082
A22: 2019-11-15 | B22: 110.7346743 | C22: 98.14404432 | D22: 88.78101402 | E22: 103.1976744 | F22: 88.03512623 | G22: 94.83065954 | H22: 98.18594104 | I22: 98.21255369 | J22: 97.87184813
A23: 2019-11-18
A24: 2019-11-19 | B24: 113.3219331 | C24: 98.36565097 | D24: 92.77238403 | E24: 105 | F24: 88.2546652 | G24: 97.64705882 | H24: 101.5873016 | I24: 95.30968546 | J24: 99.1045409
A25: 2019-11-20 | B25: 118.1514827 | C25: 102.3545706 | D25: 101.3484358 | E25: 108.9534884 | F25: 89.24259056 | G25: 101.0695187 | H25: 108.8435374 | I25: 97.48510461 | J25: 102.6945508
A26: 2019-11-21 | B26: 120.9112254 | C26: 103.0470914 | D26: 102.6429342 | E26: 108.6046512 | F26: 87.37650933 | G26: 99.60784314 | H26: 110.2040816 | I26: 95.98863794 | J26: 102.160723
A27: 2019-11-22 | B27: 121.6011611 | C27: 103.601108 | D27: 101.5641855 | E27: 110.1744186 | F27: 89.02305159 | G27: 100.3208556 | H27: 112.244898 | I27: 98.26797838 | J27: 103.2098807
A28: 2019-11-25 | B28: 118.1514827 | C28: 104.9861496 | D28: 102.5350593 | E28: 109.8255814 | F28: 88.03512623 | G28: 100.1782531 | H28: 107.0294785 | I28: 98.78065678 | J28: 102.9207048
A29: 2019-11-26 | B29: 118.3239666 | C29: 99.27977839 | D29: 96.70981661 | E29: 105.9302326 | F29: 82.766191 | G29: 96.32798574 | H29: 105.2154195 | I29: 94.15962311 | J29: 98.67586237
A30: 2019-11-27 | B30: 114.7018044 | C30: 108.5041551 | D30: 105.1240561 | E30: 115.9883721 | F30: 88.69374314 | G30: 103.2085561 | H30: 104.0816327 | I30: 98.30261882 | J30: 104.2574099
A31: 2019-11-28 | B31: 119.0139023 | C31: 108.5872576 | D31: 104.9083064 | E31: 115.9883721 | F31: 89.90120746 | G31: 103.3868093 | H31: 106.5759637 | I31: 99.17555771 | J31: 105.1486594
A32: 2019-11-29 | B32: 121.4286771 | C32: 107.2299169 | D32: 104.3149946 | E32: 115.9883721 | F32: 90.55982437 | G32: 109.4474153 | H32: 107.9365079 | I32: 100.0069281 | J32: 106.0103183
A33: 2019-12-02 | B33: 106.7675442 | C33: 103.601108 | D33: 100.9169364 | E33: 111.8023256 | F33: 88.80351262 | G33: 109.1265597 | H33: 105.2154195 | I33: 97.71373147 | J33: 102.7738583
A34: 2019-12-03 | B34: 100.5581233 | C34: 102.7146814 | D34: 100.1078749 | E34: 110.6976744 | F34: 85.62019759 | G34: 107.8074866 | H34: 103.1746032 | I34: 94.58223639 | J34: 100.6530503
A35: 2019-12-04 | B35: 101.4205428 | C35: 113.0470914 | D35: 108.2524272 | E35: 119.127907 | F35: 92.64544457 | G35: 113.9037433 | H35: 103.1746032 | I35: 100.076209 | J35: 106.6000086
A36: 2019-12-05 | B36: 105.5601568 | C36: 120.4709141 | D36: 107.8748652 | E36: 121.5116279 | F36: 93.85290889 | G36: 117.8253119 | H36: 103.4013605 | I36: 101.8497991 | J36: 108.9074244
A37: 2019-12-06 | B37: 108.6648673 | C37: 125.7063712 | D37: 116.0733549 | E37: 127.5 | F37: 96.81668496 | G37: 116.6131907 | H37: 103.6281179 | I37: 105.2653457 | J37: 112.3455178
A38: 2019-12-09 | B38: 104.8702212 | C38: 122.3545706 | D38: 116.3430421 | E38: 124.3023256 | F38: 98.46322722 | G38: 113.0124777 | H38: 101.5873016 | I38: 109.0965775 | J38: 111.8757567
A39: 2019-12-10 | B39: 106.9400282 | C39: 113.434903 | D39: 112.4056095 | E39: 115.8139535 | F39: 93.19429199 | G39: 108.0926916 | H39: 99.09297052 | I39: 103.207704 | J39: 106.4934458
A40: 2019-12-11 | B40: 110.7346743 | C40: 115.4570637 | D40: 113.1607335 | E40: 117.6744186 | F40: 92.53567508 | G40: 111.5508021 | H40: 99.09297052 | I40: 104.004434 | J40: 107.6060865
A41: 2019-12-12 | B41: 110.3897065 | C41: 117.8393352 | D41: 118.8781014 | E41: 120.1744186 | F41: 91.65751921 | G41: 109.0909091 | H41: 103.8548753 | I41: 106.40848 | J41: 109.0966439
A42: 2019-12-13 | B42: 112.4595135 | C42: 122.7700831 | D42: 129.2880259 | E42: 126.2790698 | F42: 98.24368825 | G42: 106.7023173 | H42: 105.2154195 | I42: 105.8888735 | J42: 112.9835424
A43: 2019-12-16 | B43: 111.7695778 | C43: 127.2853186 | D43: 128.2632147 | E43: 127.0348837 | F43: 102.6344676 | G43: 106.5953654 | H43: 108.3900227 | I43: 108.2374948 | J43: 115.5968806
A44: 2019-12-17 | B44: 113.1494491 | C44: 128.0886427 | D44: 125.2966559 | E44: 125 | F44: 98.35345774 | G44: 107.5935829 | H44: 105.6689342 | I44: 105.9997229 | J44: 113.4421494
A45: 2019-12-18 | B45: 113.494417 | C45: 132.6869806 | D45: 132.793959 | E45: 126.627907 | F45: 100.1097695 | G45: 108.3778966 | H45: 107.9365079 | I45: 108.6878204 | J45: 115.5973107
A46: 2019-12-19 | B46: 110.2172226 | C46: 136.0110803 | D46: 132.7400216 | E46: 126.5116279 | F46: 99.67069155 | G46: 116.4349376 | H46: 107.0294785 | I46: 109.4776223 | J46: 117.019346
A47: 2019-12-20 | B47: 109.1823191 | C47: 136.8975069 | D47: 133.9805825 | E47: 127.7325581 | F47: 100.7683864 | G47: 116.2210339 | H47: 112.0181406 | I47: 113.1910766 | J47: 118.7075116
A48: 2019-12-23 | B48: 109.354803 | C48: 144.4875346 | D48: 143.3117584 | E48: 136.5697674 | F48: 102.8540066 | G48: 119.3939394 | H48: 114.5124717 | I48: 114.8676735 | J48: 122.6493507
A49: 2019-12-24
A50: 2019-12-25
A51: 2019-12-26 | B51: 112.1145457 | C51: 152.3268698 | D51: 160.1941748 | E51: 145.9302326 | F51: 108.2327113 | G51: 121.1051693 | H51: 117.4603175 | I51: 119.9182486 | J51: 129.9110441
A52: 2019-12-27 | B52: 111.7695778 | C52: 149.1135734 | D52: 152.5889968 | E52: 140.6395349 | F52: 108.8913282 | G52: 121.6042781 | H52: 116.553288 | I52: 121.0683109 | J52: 128.0779064
A53: 2019-12-30 | B53: 111.7695778 | C53: 151.5789474 | D53: 151.5641855 | E53: 141.3953488 | F53: 109.3304061 | G53: 121.7825312 | H53: 116.3265306 | I53: 118.7751143 | J53: 128.0455811
A54: 2019-12-31
A55: 2020-01-01
A56: 2020-01-02 | B56: 110.3897065 | C56: 151.0526316 | D56: 149.9460626 | E56: 143.0232558 | F56: 105.9275521 | G56: 116.8627451 | H56: 114.2857143 | I56: 116.0939449 | J56: 126.3112014
A57: 2020-01-03 | B57: 104.1802855 | C57: 149.5567867 | D57: 145.1456311 | E57: 140.4651163 | F57: 106.3666301 | G57: 116.5418895 | H57: 109.0702948 | I57: 116.6135513 | J57: 124.443526
A58: 2020-01-06 | B58: 106.5950603 | C58: 154.099723 | D58: 151.9417476 | E58: 145.2325581 | F58: 106.2568606 | G58: 119.5721925 | H58: 111.1111111 | I58: 119.2739365 | J58: 127.425655
A59: 2020-01-07 | B59: 105.9051247 | C59: 152.0221607 | D59: 153.3980583 | E59: 144.1860465 | F59: 104.3907794 | G59: 119.8930481 | H59: 111.5646259 | I59: 116.1008729 | J59: 126.3380572
A60: 2020-01-08 | B60: 103.145382 | C60: 154.5429363 | D60: 153.9374326 | E60: 146.3953488 | F60: 101.4270033 | G60: 121.4616756 | H60: 109.9773243 | I60: 116.8491063 | J60: 126.0317353
A61: 2020-01-09 | B61: 101.5930268 | C61: 160.0554017 | D61: 162.4595469 | E61: 151.5697674 | F61: 105.8177827 | G61: 122.4955437 | H61: 109.2970522 | I61: 118.3247887 | J61: 129.1649511
A62: 2020-01-10 | B62: 100.5581233 | C62: 162.3822715 | D62: 168.824164 | E62: 155.755814 | F62: 106.1470911 | G62: 124.7771836 | H62: 109.0702948 | I62: 118.8928918 | J62: 131.3302524
A63: 2020-01-13 | B63: 100.0406715 | C63: 156.8698061 | D63: 164.7788565 | E63: 147.9651163 | F63: 104.2810099 | G63: 127.771836 | H63: 104.7619048 | I63: 118.1446584 | J63: 129.1098875
A64: 2020-01-14 | B64: 108.3198995 | C64: 152.1883657 | D64: 159.8166127 | E64: 146.1046512 | F64: 101.0976948 | G64: 131.3368984 | H64: 110.6575964 | I64: 118.1723708 | J64: 127.9298001
A65: 2020-01-15 | B65: 112.8044813 | C65: 146.0387812 | D65: 151.7259978 | E65: 142.0348837 | F65: 101.8660812 | G65: 128.3065954 | H65: 113.1519274 | I65: 118.5811279 | J65: 126.7389888
A66: 2020-01-16 | B66: 120.0488058 | C66: 150.1108033 | D66: 156.7961165 | E66: 146.3953488 | F66: 102.9637761 | G66: 130.1247772 | H66: 119.5011338 | I66: 119.1907995 | J66: 130.1686322
A67: 2020-01-17 | B67: 115.564224 | C67: 147.8947368 | D67: 159.2772384 | E67: 146.9767442 | F67: 106.2568606 | G67: 135.4367201 | H67: 120.1814059 | I67: 114.9785229 | J67: 130.099434
A68: 2020-01-20 | B68: 115.3917401 | C68: 153.3518006 | D68: 161.3268608 | E68: 148.9534884 | F68: 108.2327113 | G68: 139.0374332 | H68: 120.6349206 | I68: 118.2277955 | J68: 132.2939571
A69: 2020-01-21 | B69: 114.8742883 | C69: 147.0637119 | D69: 154.2610572 | E69: 143.8372093 | F69: 102.7442371 | G69: 137.4331551 | H69: 116.7800454 | I69: 112.262713 | J69: 127.4754334
A70: 2020-01-22 | B70: 112.1145457 | C70: 152.4376731 | D70: 158.1445523 | E70: 144.8837209 | F70: 106.1470911 | G70: 136.5418895 | H70: 115.1927438 | I70: 114.3757794 | J70: 129.0624443
A71: 2020-01-23 | B71: 113.8393848 | C71: 146.8421053 | D71: 150.9708738 | E71: 141.1627907 | F71: 102.1953897 | G71: 135.7575758 | H71: 112.9251701 | I71: 112.262713 | J71: 126.4133394
A72: 2020-01-24 | B72: 114.0118687 | C72: 139.66759 | D72: 140.8306365 | E72: 136.3372093 | F72: 98.79253568 | G72: 136.399287 | H72: 108.3900227 | I72: 110.3505612 | J72: 122.6572477
A73: 2020-01-27 | B73: 119.703838 | C73: 137.700831 | D73: 136.8392665 | E73: 133.372093 | F73: 98.79253568 | G73: 135.0445633 | H73: 110.430839 | I73: 110.0526535 | J73: 121.6947106
A74: 2020-01-28 | B74: 119.5313541 | C74: 146.3711911 | D74: 142.0711974 | E74: 141.744186 | F74: 102.3051592 | G74: 136.1853832 | H74: 109.2970522 | I74: 110.2327837 | J74: 125.4592216
A75: 2020-01-29 | B75: 114.1843526 | C75: 145.7063712 | D75: 140.776699 | E75: 142.3255814 | F75: 99.23161361 | G75: 134.4741533 | H75: 105.4421769 | I75: 110.6276846 | J75: 123.9588621
A76: 2020-01-30 | B76: 112.2870296 | C76: 146.066482 | D76: 142.394822 | E76: 144.4186047 | F76: 100.3293085 | G76: 135.0445633 | H76: 104.30839 | I76: 111.6946099 | J76: 124.1233461
A77: 2020-01-31 | B77: 112.4595135 | C77: 145.9279778 | D77: 142.6105717 | E77: 142.0930233 | F77: 98.79253568 | G77: 135.828877 | H77: 107.4829932 | I77: 109.0757933 | J77: 123.2325268
A78: 2020-02-03 | B78: 112.4595135 | C78: 155.1246537 | D78: 148.9751888 | E78: 148.3139535 | F78: 106.0373216 | G78: 138.6809269 | H78: 106.8027211 | I78: 113.0178745 | J78: 127.7556677
A79: 2020-02-04 | B79: 110.7346743 | C79: 152.3268698 | D79: 142.9881338 | E79: 146.8604651 | F79: 102.9637761 | G79: 139.7504456 | H79: 104.30839 | I79: 112.6437578 | J79: 126.086338
A80: 2020-02-05 | B80: 109.5272869 | C80: 151.634349 | D80: 145.5231931 | E80: 145.0581395 | F80: 101.6465423 | G80: 138.3957219 | H80: 102.4943311 | I80: 114.4450603 | J80: 125.2668678
A81: 2020-02-06 | B81: 110.0447387 | C81: 152.3268698 | D81: 146.6558792 | E81: 145.1162791 | F81: 103.0735456 | G81: 142.6024955 | H81: 103.8548753 | I81: 114.8538174 | J81: 125.6939485
A82: 2020-02-07 | B82: 110.2172226 | C82: 154.7368421 | D82: 150.1078749 | E82: 147.3837209 | F82: 103.183315 | G82: 143.7433155 | H82: 107.7097506 | I82: 113.4127754 | J82: 126.6397392
A83: 2020-02-10 | B83: 105.9051247 | C83: 154.3213296 | D83: 148.7594391 | E83: 146.9767442 | F83: 102.0856202 | G83: 142.6024955 | H83: 106.5759637 | I83: 114.4797007 | J83: 126.1452117
A84: 2020-02-11 | B84: 101.4205428 | C84: 148.1440443 | D84: 144.7141316 | E84: 142.7906977 | F84: 99.67069155 | G84: 138.1461676 | H84: 106.122449 | I84: 110.1842871 | J84: 122.3704992
A85: 2020-02-12 | B85: 102.4554463 | C85: 149.7783934 | D85: 145.0377562 | E85: 142.1511628 | F85: 99.78046103 | G85: 139.714795 | H85: 104.9886621 | I85: 109.3806291 | J85: 122.7135711
A86: 2020-02-13 | B86: 97.79838059 | C86: 145.1800554 | D86: 134.8975189 | E86: 134.5348837 | F86: 96.70691548 | G86: 137.8253119 | H86: 105.6689342 | I86: 106.2214216 | J86: 118.8213568
A87: 2020-02-14 | B87: 101.4205428 | C87: 144.7091413 | D87: 133.3333333 | E87: 135.6976744 | F87: 93.85290889 | G87: 133.7967914 | H87: 108.3900227 | I87: 107.6001108 | J87: 118.7544324
A88: 2020-02-17 | B88: 105.5601568 | C88: 147.0914127 | D88: 134.5199569 | E88: 137.2093023 | F88: 96.15806806 | G88: 137.6827094 | H88: 109.7505669 | I88: 108.7986698 | J88: 120.4523387
A89: 2020-02-18 | B89: 101.4205428 | C89: 141.3850416 | D89: 130.8522114 | E89: 130.9883721 | F89: 92.75521405 | G89: 135.9001783 | H89: 107.4829932 | I89: 106.6440349 | J89: 117.2465447
A90: 2020-02-19 | B90: 101.2480589 | C90: 146.9529086 | D90: 130.3667745 | E90: 133.0813953 | F90: 92.64544457 | G90: 138.2887701 | H90: 104.30839 | I90: 107.212138 | J90: 117.9652288
A91: 2020-02-20 | B91: 99.17825192 | C91: 152.9639889 | D91: 134.4660194 | E91: 134.244186 | F91: 94.18221734 | G91: 138.5383244 | H91: 103.4013605 | I91: 108.65318 | J91: 119.7184445
A92: 2020-02-21 | B92: 99.52321975 | C92: 150.6371191 | D92: 134.2502697 | E92: 134.4186047 | F92: 92.97475302 | G92: 137.5757576 | H92: 100.4535147 | I92: 106.3461272 | J92: 118.6155444
A93: 2020-02-24
A94: 2020-02-25
A95: 2020-02-26 | B95: 95.55608968 | C95: 143.4626039 | D95: 125.8360302 | E95: 125.6976744 | F95: 86.27881449 | G95: 137.0053476 | H95: 98.86621315 | I95: 97.20798116 | J95: 111.9162247
A96: 2020-02-27 | B96: 88.82921694 | C96: 134.2382271 | D96: 124.5415318 | E96: 124.7093023 | F96: 86.38858397 | G96: 137.8253119 | H96: 91.60997732 | I96: 94.11112651 | J96: 108.7353507
A97: 2020-02-28 | B97: 91.07150785 | C97: 130.1385042 | D97: 120.3344121 | E97: 119.4186047 | F97: 85.72996707 | G97: 138.1461676 | H97: 92.74376417 | I97: 91.34682001 | J97: 107.4636341
A98: 2020-03-02 | B98: 93.6587666 | C98: 135.4570637 | D98: 125.0269687 | E98: 123.6627907 | F98: 95.1701427 | G98: 132.6203209 | H98: 95.91836735 | I98: 92.12969378 | J98: 111.3969617
A99: 2020-03-03 | B99: 89.69163652 | C99: 135.0415512 | D99: 124.3257821 | E99: 122.0930233 | F99: 97.03622393 | G99: 133.4046346 | H99: 90.70294785 | I99: 92.30289594 | J99: 110.6163925
A100: 2020-03-04 | B100: 93.14131485 | C100: 140.7479224 | D100: 130.5285868 | E100: 127.2093023 | F100: 102.1953897 | G100: 139.1800357 | H100: 93.65079365 | I100: 92.71165304 | J100: 114.4393164
A101: 2020-03-05 | B101: 89.17418477 | C101: 141.2188366 | D101: 130.6364617 | E101: 126.2209302 | F101: 100.3293085 | G101: 139.7504456 | H101: 92.74376417 | I101: 88.381599 | J101: 112.9915622
A102: 2020-03-06 | B102: 88.48424911 | C102: 130.8033241 | D102: 123.9482201 | E102: 118.7790698 | F102: 96.26783754 | G102: 136.1853832 | H102: 92.5170068 | I102: 83.69821255 | J102: 108.2295156
A103: 2020-03-09 | B103: 80.37750504 | C103: 109.833795 | D103: 105.8791802 | E103: 99.88372093 | F103: 83.4248079 | G103: 133.6898396 | H103: 80.95238095 | I103: 63.73146737 | J103: 93.34965985
A104: 2020-03-10 | B104: 82.27482812 | C104: 119.2520776 | D104: 118.2308522 | E104: 108.372093 | F104: 89.24259056 | G104: 145.2406417 | H104: 86.84807256 | I104: 71.6502702 | J104: 100.8851347
A105: 2020-03-11 | B105: 74.85801971 | C105: 116.0387812 | D105: 106.5803668 | E105: 103.4883721 | F105: 84.74204171 | G105: 153.5472371 | H105: 80.49886621 | I105: 66.37106831 | J105: 96.54439193
A106: 2020-03-12 | B106: 66.75127564 | C106: 99.72299169 | D106: 86.24595469 | E106: 91.74418605 | F106: 81.00987925 | G106: 143.1729055 | H106: 74.14965986 | I106: 58.15435777 | J106: 87.11810399
A107: 2020-03-13 | B107: 70.71840572 | C107: 100.8033241 | D107: 91.85544768 | E107: 93.60465116 | F107: 80.79034029 | G107: 136.684492 | H107: 78.23129252 | I107: 56.02743522 | J107: 87.41333325
A108: 2020-03-16 | B108: 61.92172598 | C108: 88.64265928 | D108: 84.35814455 | E108: 76.91860465 | F108: 76.18002195 | G108: 130.5525847 | H108: 72.78911565 | I108: 48.91229043 | J108: 78.96187339
A109: 2020-03-17 | B109: 60.19688682 | C109: 93.49030471 | D109: 89.69795038 | E109: 78.60465116 | F109: 81.11964874 | G109: 113.7611408 | H109: 74.82993197 | I109: 44.10419842 | J109: 79.34891624
A110: 2020-03-18 | B110: 48.29549659 | C110: 78.00554017 | D110: 79.01833873 | E110: 64.12790698 | F110: 76.61909989 | G110: 96.93404635 | H110: 66.21315193 | I110: 32.64514341 | J110: 67.86809938
A111: 2020-03-19 | B111: 54.67740149 | C111: 75.54016621 | D111: 76.75296656 | E111: 65.1744186 | F111: 73.7650933 | G111: 101.6399287 | H111: 69.84126984 | I111: 39.18525703 | J111: 69.61741263
A112: 2020-03-20 | B112: 60.0244029 | C112: 80.69252078 | D112: 79.61165049 | E112: 70.98837209 | F112: 75.41163557 | G112: 102.3885918 | H112: 75.73696145 | I112: 44.2150478 | J112: 73.40893308
A113: 2020-03-23
A114: 2020-03-24
A115: 2020-03-25 | B115: 63.99153298 | C115: 87.45152355 | D115: 84.46601942 | E115: 77.3255814 | F115: 89.02305159 | G115: 109.1622103 | H115: 80.95238095 | I115: 52.36247748 | J115: 80.93002747
A116: 2020-03-26 | B116: 66.06133998 | C116: 84.68144044 | D116: 80.42071197 | E116: 76.1627907 | F116: 85.18111965 | G116: 101.9964349 | H116: 81.85941043 | I116: 49.34875987 | J116: 78.30562742
A117: 2020-03-27 | B117: 62.26669381 | C117: 76.26038781 | D117: 74.86515642 | E117: 69.18604651 | F117: 77.82656422 | G117: 100.6773619 | H117: 79.8185941 | I117: 47.22183733 | J117: 73.92592228
A118: 2020-03-30 | B118: 63.47408123 | C118: 77.36842105 | D118: 75.08090615 | E118: 67.38372093 | F118: 78.37541164 | G118: 111.942959 | H118: 81.85941043 | I118: 47.87307746 | J118: 74.92653069
A119: 2020-03-31
A120: 2020-04-01 | B120: 66.06133998 | C120: 80 | D120: 79.50377562 | E120: 69.94186047 | F120: 84.30296378 | G120: 111.7290553 | H120: 83.44671202 | I120: 50.71359291 | J120: 77.81503309
A121: 2020-04-02 | B121: 68.13114697 | C121: 83.60110803 | D121: 83.22545847 | E121: 74.70930233 | F121: 82.87596048 | G121: 111.8716578 | H121: 85.48752834 | I121: 53.0691423 | J121: 79.90142637
A122: 2020-04-03 | B122: 70.37343789 | C122: 85.87257618 | D122: 84.19633225 | E122: 75.63953488 | F122: 84.52250274 | G122: 110.5525847 | H122: 87.98185941 | I122: 53.81044755 | J122: 81.44434339
A123: 2020-04-06 | B123: 75.20298754 | C123: 84.59833795 | D123: 84.51995685 | E123: 74.18604651 | F123: 85.29088913 | G123: 113.7254902 | H123: 92.06349206 | I123: 54.28848552 | J123: 82.72623079
A124: 2020-04-07 | B124: 78.30769804 | C124: 81.71745152 | D124: 84.25026969 | E124: 73.08139535 | F124: 84.96158068 | G124: 112.0855615 | H124: 93.87755102 | I124: 52.43868643 | J124: 82.03028497
A125: 2020-04-08 | B125: 80.72247287 | C125: 84.90304709 | D125: 89.15857605 | E125: 78.60465116 | F125: 91.10867179 | G125: 111.7647059 | H125: 98.86621315 | I125: 55.99279479 | J125: 86.09088563
A126: 2020-04-09
A127: 2020-04-10
A128: 2020-04-13 | B128: 85.03457078 | C128: 90.69252078 | D128: 92.12513484 | E128: 81.45348837 | F128: 91.87705818 | G128: 118.2887701 | H128: 101.3605442 | I128: 56.26991825 | J128: 88.74281746
A129: 2020-04-14 | B129: 89.34666869 | C129: 97.75623269 | D129: 96.65587918 | E129: 89.65116279 | F129: 97.36553238 | G129: 125.4545455 | H129: 108.3900227 | I129: 59.93487599 | J129: 94.58382753
A130: 2020-04-15 | B130: 89.17418477 | C130: 106.1772853 | D130: 102.5889968 | E130: 96.3372093 | F130: 102.7442371 | G130: 129.5187166 | H130: 112.0181406 | I130: 60.55840377 | J130: 98.54496347
A131: 2020-04-16 | B131: 84.86208686 | C131: 98.44875346 | D131: 98.65156419 | E131: 92.55813953 | F131: 95.49945115 | G131: 115.7932264 | H131: 107.9365079 | I131: 55.50782874 | J131: 92.42113802
A132: 2020-04-17 | B132: 88.48424911 | C132: 93.93351801 | D132: 102.2653722 | E132: 88.19767442 | F132: 91.54774973 | G132: 114.9019608 | H132: 108.8435374 | I132: 55.6810309 | J132: 91.82364292
A133: 2020-04-20 | B133: 91.24399177 | C133: 98.44875346 | D133: 106.3106796 | E133: 90.87209302 | F133: 92.53567508 | G133: 114.1532977 | H133: 110.2040816 | I133: 55.03671886 | J133: 93.82848557
A134: 2020-04-21 | B134: 91.24399177 | C134: 94.65373961 | D134: 102.0496224 | E134: 87.90697674 | F134: 92.53567508 | G134: 119.0730838 | H134: 110.6575964 | I134: 52.80587502 | J134: 92.91081053
A135: 2020-04-22 | B135: 94.17621835 | C135: 94.51523546 | D135: 100.3236246 | E135: 86.80232558 | F135: 95.8287596 | G135: 120.4991087 | H135: 112.6984127 | I135: 54.64874602 | J135: 93.88732862
A136: 2020-04-23 | B136: 95.03863793 | C136: 95.92797784 | D136: 97.03344121 | E136: 83.25581395 | F136: 95.93852909 | G136: 114.2602496 | H136: 114.5124717 | I136: 54.97436608 | J136: 93.34671001
A137: 2020-04-24 | B137: 92.27889527 | C137: 89.14127424 | D137: 94.55231931 | E137: 79.41860465 | F137: 93.19429199 | G137: 108.342246 | H137: 113.1519274 | I137: 51.30940834 | J137: 89.90265547
A138: 2020-04-27 | B138: 95.72857359 | C138: 90.85872576 | D138: 99.08306365 | E138: 81.10465116 | F138: 94.84083425 | G138: 110.9090909 | H138: 116.3265306 | I138: 52.11999446 | J138: 92.14001266
A139: 2020-04-28 | B139: 99.17825192 | C139: 107.2576177 | D139: 112.3516721 | E139: 94.76744186 | F139: 101.2074643 | G139: 120.855615 | H139: 126.984127 | I139: 60.90480809 | J139: 101.5997935
A140: 2020-04-29 | B140: 100.7306072 | C140: 107.4792244 | D140: 116.5048544 | E140: 95.98837209 | F140: 101.7563117 | G140: 114.973262 | H140: 126.5306122 | I140: 62.58140502 | J140: 101.9691681
A141: 2020-04-30 | B141: 104.8702212 | C141: 102.5207756 | D141: 110.8414239 | E141: 93.77906977 | F141: 101.0976948 | G141: 113.2976827 | H141: 128.1179138 | I141: 60.06650963 | J141: 100.6103699
A142: 2020-05-01
A143: 2020-05-04 | B143: 104.0078016 | C143: 102.5484765 | D143: 114.2934196 | E143: 94.70930233 | F143: 98.79253568 | G143: 112.3351159 | H143: 125.8503401 | I143: 58.14050159 | J143: 99.51782499
A144: 2020-05-05 | B144: 109.354803 | C144: 105.2908587 | D144: 115.8036677 | E144: 97.15116279 | F144: 105.9275521 | G144: 114.9376114 | H144: 130.6122449 | I144: 61.01565748 | J144: 103.0798729
A145: 2020-05-06 | B145: 109.8722547 | C145: 107.867036 | D145: 120.7119741 | E145: 100.6395349 | F145: 106.9154775 | G145: 116.2210339 | H145: 131.5192744 | I145: 60.93944852 | J145: 104.9615292
A146: 2020-05-07 | B146: 109.354803 | C146: 118.8919668 | D146: 132.3085221 | E146: 109.3023256 | F146: 108.8913282 | G146: 121.6399287 | H146: 134.2403628 | I146: 64.33421089 | J146: 110.1585229
A147: 2020-05-08 | B147: 104.8702212 | C147: 119.3074792 | D147: 133.9266451 | E147: 109.7093023 | F147: 110.64764 | G147: 120.3208556 | H147: 135.3741497 | I147: 66.20479424 | J147: 111.1838669
A148: 2020-05-11 | B148: 108.6648673 | C148: 130.1108033 | D148: 149.2448759 | E148: 121.8604651 | F148: 118.1119649 | G148: 129.0909091 | H148: 139.4557823 | I148: 67.99224054 | J148: 118.5513855
A149: 2020-05-12 | B149: 107.9749317 | C149: 135.4847645 | D149: 150.1078749 | E149: 123.1395349 | F149: 118.2217344 | G149: 129.5543672 | H149: 132.4263039 | I149: 72.0036026 | J149: 120.2478783
A150: 2020-05-13 | B150: 104.1802855 | C150: 127.700831 | D150: 147.0873786 | E150: 115.9883721 | F150: 114.7091109 | G150: 129.3404635 | H150: 131.7460317 | I150: 67.45877789 | J150: 116.2812729
A151: 2020-05-14 | B151: 108.1474156 | C151: 129.6398892 | D151: 151.4023732 | E151: 121.5116279 | F151: 120.417124 | G151: 130.8734403 | H151: 136.0544218 | I151: 70.69419426 | J151: 120.5304478
A152: 2020-05-15 | B152: 109.354803 | C152: 126.398892 | D152: 150.7551241 | E152: 119.5930233 | F152: 117.8924259 | G152: 134.9376114 | H152: 140.5895692 | I152: 70.79811556 | J152: 121.0302604
A153: 2020-05-18 | B153: 109.0098352 | C153: 128.033241 | D153: 156.5264293 | E153: 124.0116279 | F153: 122.3929748 | G153: 137.6470588 | H153: 138.7755102 | I153: 73.05667175 | J153: 123.790783
A154: 2020-05-19 | B154: 108.6648673 | C154: 122.8254848 | D154: 146.9255663 | E154: 118.5465116 | F154: 118.1119649 | G154: 132.4064171 | H154: 138.0952381 | I154: 72.35693501 | J154: 121.0314588
A155: 2020-05-20 | B155: 105.7326407 | C155: 125.7894737 | D155: 151.5641855 | E155: 121.8604651 | F155: 116.0263447 | G155: 134.2602496 | H155: 139.9092971 | I155: 73.89497021 | J155: 122.3233633
A156: 2020-05-21 | B156: 108.4923834 | C156: 132.8531856 | D156: 156.4724919 | E156: 129.0697674 | F156: 125.0274424 | G156: 137.0053476 | H156: 145.1247166 | I156: 76.41679368 | J156: 127.176271
A157: 2020-05-22 | B157: 108.1474156 | C157: 131.3019391 | D157: 154.5846818 | E157: 127.1511628 | F157: 119.2096597 | G157: 133.7611408 | H157: 146.4852608 | I157: 76.01496467 | J157: 125.8680195
A158: 2020-05-25
A159: 2020-05-26 | B159: 108.1474156 | C159: 132.5207756 | D159: 155.0161812 | E159: 126.3953488 | F159: 117.7826564 | G159: 135.4367201 | H159: 147.845805 | I159: 79.20188444 | J159: 126.1677042
A160: 2020-05-27 | B160: 110.9071582 | C160: 129.0304709 | D160: 150.4314995 | E160: 125.1744186 | F160: 109.4401756 | G160: 134.5454545 | H160: 149.8866213 | I160: 81.73756408 | J160: 124.23587
A161: 2020-05-28 | B161: 113.494417 | C161: 123.601108 | D161: 142.8263215 | E161: 116.627907 | F161: 107.3545554 | G161: 127.1657754 | H161: 148.2993197 | I161: 78.66842178 | J161: 119.7934501
A162: 2020-05-29 | B162: 116.5991275 | C162: 109.3905817 | D162: 135.4368932 | E162: 108.3139535 | F162: 104.5005488 | G162: 131.7290553 | H162: 151.2471655 | I162: 77.7885548 | J162: 116.2257176
A163: 2020-06-01 | B163: 122.4635806 | C163: 117.9778393 | D163: 143.635383 | E163: 115.755814 | F163: 110.5378705 | G163: 135.9714795 | H163: 161.9047619 | I163: 81.7791326 | J163: 122.961941
A164: 2020-06-02 | B164: 127.2931303 | C164: 131.5512465 | D164: 152.1574973 | E164: 125.5232558 | F164: 114.4895719 | G164: 139.0374332 | H164: 164.8526077 | I164: 86.82277955 | J164: 129.1706664
A165: 2020-06-03 | B165: 129.7079051 | C165: 140.5263158 | D165: 168.824164 | E165: 136.4534884 | F165: 115.5872667 | G165: 150.4456328 | H165: 165.0793651 | I165: 92.08812526 | J165: 134.7492334
A166: 2020-06-04 | B166: 132.2951639 | C166: 139.0027701 | D166: 166.6127292 | E166: 136.5697674 | F166: 112.5137212 | G166: 158.0035651 | H166: 164.1723356 | I166: 92.66315644 | J166: 134.2057264
A167: 2020-06-05 | B167: 138.3321009 | C167: 141.4127424 | D167: 172.9234088 | E167: 140.9883721 | F167: 117.8924259 | G167: 162.3529412 | H167: 171.2018141 | I167: 93.61230428 | J167: 138.6691023
A168: 2020-06-08 | B168: 144.7140058 | C168: 154.099723 | D168: 188.1337648 | E168: 155.2325581 | F168: 126.1251372 | G168: 184.9197861 | H168: 180.952381 | I168: 104.3439102 | J168: 150.1993596
A169: 2020-06-09 | B169: 142.9891667 | C169: 145.4847645 | D169: 174.811219 | E169: 146.627907 | F169: 119.0998902 | G169: 174.5454545 | H169: 165.9863946 | I169: 102.480255 | J169: 142.7936775
A170: 2020-06-10 | B170: 144.0240702 | C170: 145.1800554 | D170: 176.3214671 | E170: 148.6046512 | F170: 117.3435785 | G170: 169.2335116 | H170: 171.8820862 | I170: 100.4849661 | J170: 142.809072
A171: 2020-06-11 | B171: 136.7797457 | C171: 131.8559557 | D171: 161.2729234 | E171: 135.5813953 | F171: 107.9034029 | G171: 162.5668449 | H171: 159.6371882 | I171: 92.52459471 | J171: 132.306033
A172: 2020-06-12 | B172: 136.7797457 | C172: 134.7922438 | D172: 167.7993528 | E172: 139.0697674 | F172: 107.9034029 | G172: 157.2192513 | H172: 164.399093 | I172: 92.79479008 | J172: 133.4097935
A173: 2020-06-15
A174: 2020-06-16 | B174: 140.7468758 | C174: 130.4709141 | D174: 161.2729234 | E174: 135.872093 | F174: 105.0493963 | G174: 154.8663102 | H174: 161.6780045 | I174: 90.87571013 | J174: 131.1634024
A175: 2020-06-17 | B175: 134.1924869 | C175: 120.7479224 | D175: 152.2114347 | E175: 127.8488372 | F175: 99.89023052 | G175: 147.2370766 | H175: 150.7936508 | I175: 86.3378135 | J175: 124.3574892
A176: 2020-06-18 | B176: 128.8454855 | C176: 114.5429363 | D176: 140.4530744 | E176: 119.3023256 | F176: 94.07244786 | G176: 138.4313725 | H176: 145.1247166 | I176: 80.73991963 | J176: 116.735363
A177: 2020-06-19 | B177: 136.08981 | C177: 124.3213296 | D177: 152.4271845 | E177: 132.5 | F177: 100.4390779 | G177: 147.0944742 | H177: 161.9047619 | I177: 86.16461133 | J177: 125.8333282
A178: 2020-06-22 | B178: 138.159617 | C178: 120.5263158 | D178: 148.381877 | E178: 128.0813953 | F178: 97.47530187 | G178: 140.3565062 | H178: 164.6258503 | I178: 84.33559651 | J178: 123.9677731
A179: 2020-06-23 | B179: 138.8495527 | C179: 121.1080332 | D179: 146.6019417 | E179: 130.0581395 | F179: 97.80461032 | G179: 141.8894831 | H179: 170.0680272 | I179: 84.67507274 | J179: 125.3789001
A180: 2020-06-24 | B180: 138.8495527 | C180: 120.2770083 | D180: 147.4649407 | E180: 128.4883721 | F180: 97.36553238 | G180: 145.7754011 | H180: 169.1609977 | I180: 82.84605792 | J180: 124.2474542
A181: 2020-06-25 | B181: 140.4019079 | C181: 125.8171745 | D181: 162.9449838 | E181: 135.1744186 | F181: 104.7200878 | G181: 147.486631 | H181: 168.707483 | I181: 85.69350145 | J181: 129.0449604
A182: 2020-06-26 | B182: 135.7448422 | C182: 117.9224377 | D182: 152.7508091 | E182: 128.372093 | F182: 99.45115258 | G182: 142.9233512 | H182: 167.5736961 | I182: 84.36330885 | J182: 124.7223468
A183: 2020-06-29 | B183: 133.8475191 | C183: 115.9556787 | D183: 155.5016181 | E183: 127.6744186 | F183: 100.3293085 | G183: 138.4670232 | H183: 159.1836735 | I183: 85.25703201 | J183: 123.856509
A184: 2020-06-30 | B184: 124.5333876 | C184: 110.4709141 | D184: 146.7098166 | E184: 120 | F184: 98.79253568 | G184: 134.9376114 | H184: 148.2993197 | I184: 83.42801718 | J184: 118.8743002
A185: 2020-07-01 | B185: 129.3629373 | C185: 114.5152355 | D185: 151.9417476 | E185: 123.1976744 | F185: 104.6103183 | G185: 137.7896613 | H185: 147.6190476 | I185: 86.33088541 | J185: 122.438837
A186: 2020-07-02 | B186: 127.4656142 | C186: 111.6066482 | D186: 148.0582524 | E186: 119.127907 | F186: 100.9879254 | G186: 137.3975045 | H186: 146.031746 | I186: 87.73728696 | J186: 121.3760056
A187: 2020-07-03 | B187: 126.4307107 | C187: 113.767313 | D187: 148.0582524 | E187: 120.9302326 | F187: 104.1712404 | G187: 139.2156863 | H187: 148.7528345 | I187: 87.0029098 | J187: 122.1667763
A188: 2020-07-06 | B188: 129.7079051 | C188: 132.6038781 | D188: 168.5005394 | E188: 142.3837209 | F188: 111.0867179 | G188: 151.5508021 | H188: 147.6190476 | I188: 93.07884162 | J188: 133.1717787
A189: 2020-07-07 | B189: 127.4656142 | C189: 127.7839335 | D189: 164.1316073 | E189: 139.4186047 | F189: 109.3304061 | G189: 147.9144385 | H189: 142.6303855 | I189: 92.00498822 | J189: 130.5842516
A190: 2020-07-08 | B190: 126.6031946 | C190: 130 | D190: 166.0733549 | E190: 140.6395349 | F190: 111.7453348 | G190: 143.5650624 | H190: 141.4965986 | I190: 92.82250242 | J190: 131.352284
A191: 2020-07-09
A192: 2020-07-10
A193: 2020-07-13 | B193: 125.5682911 | C193: 134.2382271 | D193: 167.7454153 | E193: 146.6860465 | F193: 112.4039517 | G193: 146.3814617 | H193: 139.0022676 | I193: 94.34668145 | J193: 132.8562693
A194: 2020-07-14 | B194: 126.6031946 | C194: 135.9833795 | D194: 171.2513484 | E194: 148.4883721 | F194: 113.7211855 | G194: 147.9144385 | H194: 143.7641723 | I194: 98.21948178 | J194: 135.2065806
A195: 2020-07-15 | B195: 128.8454855 | C195: 142.1606648 | D195: 173.4627832 | E195: 153.372093 | F195: 115.6970362 | G195: 149.6969697 | H195: 149.6598639 | I195: 100.7343772 | J195: 138.6440287
A196: 2020-07-16 | B196: 128.6730016 | C196: 141.1911357 | D196: 174.2179072 | E196: 153.5465116 | F196: 114.9286498 | G196: 150.3030303 | H196: 149.4331066 | I196: 102.4317583 | J196: 139.0270156
A197: 2020-07-17 | B197: 132.12268 | C197: 141.7174515 | D197: 172.5458468 | E197: 153.0232558 | F197: 113.5016465 | G197: 154.6524064 | H197: 151.9274376 | I197: 103.3185534 | J197: 139.7337774
A198: 2020-07-20 | B198: 135.5723583 | C198: 137.4238227 | D198: 172.7076591 | E198: 150.5813953 | F198: 116.0263447 | G198: 158.2887701 | H198: 160.0907029 | I198: 104.5032562 | J198: 140.37214
A199: 2020-07-21 | B199: 138.8495527 | C199: 141.634349 | D199: 174.9730313 | E199: 156.627907 | F199: 120.417124 | G199: 162.2459893 | H199: 164.399093 | I199: 105.1614244 | J199: 143.7468428
A200: 2020-07-22 | B200: 147.1287807 | C200: 150.9418283 | D200: 185.4368932 | E200: 166.4534884 | F200: 123.9297475 | G200: 168.3065954 | H200: 168.707483 | I200: 106.567826 | J200: 149.4401153
A201: 2020-07-23 | B201: 142.6441989 | C201: 150.2216066 | D201: 187.9719525 | E201: 166.3372093 | F201: 123.2711306 | G201: 167.5579323 | H201: 163.9455782 | I201: 107.129001 | J201: 148.7462282
... 70 more rows

Sheet Base
A1: ↓ Lista de Códigos (es posible modificar la lista) | G1: Seleccionadas
A2: =_xll.ECOSECURITIES("stock","active","true","arg","xbue") -> Codigo | B2: =_xll.ECONOMATICA($A$3:$A$201,"TICKER") -> Codigo | C2: =_xll.ECONOMATICA($A$3:$A$201,"NAME") -> Nombre | D2: =_xll.ECONOMATICA($A$3:$A$201,"CLASS") -> Clase | E2: Nome e Classe | G2: Código | H2: Nombre | J2: Funciones Utilizadas en la Planilla
A3: AGRO<XBUE> | B3: AGRO | C3: Agrometal | D3: Ord | E3: =IFERROR(CONCATENATE(C3," ",D3),"") -> Agrometal Ord | G3: =INDEX(B:B,MATCH(H3,C:C,0)) -> ALUA | H3: ='Planilla Comparativa Acciones'!C6 -> Aluar | J3: =_xlfn.FORMULATEXT(G3) -> =INDICE(B:B;COINCIDIR(H3;C:C;0))
A4: ALUA<XBUE> | B4: ALUA | C4: Aluar | D4: Ord | E4: =IFERROR(CONCATENATE(C4," ",D4),"") -> Aluar Ord | G4: =INDEX(B:B,MATCH(H4,C:C,0)) -> BMA | H4: ='Planilla Comparativa Acciones'!C7 -> Banco Macro S.A. | J4: =_xlfn.FORMULATEXT('Planilla Comparativa Acciones'!F6) -> =SI.ERROR(@ECONOMATICA(B6&"<XBue>";"Sector NAICS";;$R$3);"")
A5: AUSO<XBUE> | B5: AUSO | C5: Autopistas del Sol | D5: Ord D | E5: Autopistas del Sol Ord D | G5: BBAR | H5: ='Planilla Comparativa Acciones'!C8 -> Bbva S. A.
A6: BHIP<XBUE> | B6: BHIP | C6: Banco Hipotecario | D6: Ord | E6: Banco Hipotecario Ord | G6: GGAL | H6: ='Planilla Comparativa Acciones'!C9 -> Grupo Fin. Galicia
A7: BMA<XBUE> | B7: BMA | C7: Banco Macro S.A. | D7: Ord B | E7: Banco Macro S.A. Ord B | G7: PAMP | H7: ='Planilla Comparativa Acciones'!C10 -> Pampa Energia S.A.
A8: BPAT<XBUE> | B8: BPAT | C8: Banco Patagonia | D8: Ord | E8: Banco Patagonia Ord | G8: TECO2 | H8: ='Planilla Comparativa Acciones'!C11 -> Telecom Argentina S.A.
A9: BRIO<XBUE> | B9: BRIO | C9: Banco Santander Rio | D9: Ord B | E9: Banco Santander Rio Ord B | G9: TXAR | H9: ='Planilla Comparativa Acciones'!C12 -> Ternium Argentina
A10: BBAR<XBUE> | B10: BBAR | C10: Bbva S. A. | D10: Ord | E10: Bbva S. A. Ord | G10: YPFD | H10: ='Planilla Comparativa Acciones'!C13 -> Ypf S.A.
A11: GAMI<XBUE> | B11: GAMI | C11: B-Gaming Sa | D11: Ord | E11: B-Gaming Sa Ord
A12: ESME<XBUE> | B12: ESME | C12: Bodegas Esmeralda | D12: Ord | E12: Bodegas Esmeralda Ord
A13: BOLT<XBUE> | B13: BOLT | C13: Boldt | D13: Ord | E13: Boldt Ord
A14: BYMA<XBUE> | B14: BYMA | C14: Bolsas Y Mercados Argentinos S.A. | D14: Ord A | E14: Bolsas Y Mercados Argentinos S.A. Ord A
A15: CVH<XBUE> | B15: CVH | C15: Cablevisión Holding S.A. | D15: Ord B | E15: Cablevisión Holding S.A. Ord B
A16: CGPA2<XBUE> | B16: CGPA2 | C16: Camuzzi Gas Pamp. | D16: Ord B | E16: Camuzzi Gas Pamp. Ord B
A17: CAPX<XBUE> | B17: CAPX | C17: Capex | D17: Ord A | E17: Capex Ord A
A18: CARC<XBUE> | B18: CARC | C18: Carboclor S.A. | D18: Ord | E18: Carboclor S.A. Ord
A19: CADO<XBUE> | B19: CADO | C19: Carlos Casado | D19: Ord | E19: Carlos Casado Ord
A20: CELU<XBUE> | B20: CELU | C20: Celulosa | D20: Ord | E20: Celulosa Ord
A21: CEPU<XBUE> | B21: CEPU | C21: Central Puerto | D21: Ord | E21: Central Puerto Ord
A22: COME<XBUE> | B22: COME | C22: Comercial del Plata | D22: Ord | E22: Comercial del Plata Ord
A23: CTIO<XBUE> | B23: CTIO | C23: Consultatio | D23: Ord | E23: Consultatio Ord
A24: CRES<XBUE> | B24: CRES | C24: Cresud | D24: Ord | E24: Cresud Ord
A25: DGCU2<XBUE> | B25: DGCU2 | C25: Distr Gas Cuyana | D25: Ord B | E25: Distr Gas Cuyana Ord B
A26: DOME<XBUE> | B26: DOME | C26: Domec | D26: Ord | E26: Domec Ord
A27: DYCA<XBUE> | B27: DYCA | C27: Dycasa | D27: Ord B | E27: Dycasa Ord B
A28: EDN<XBUE> | B28: EDN | C28: Edenor | D28: Ord B | E28: Edenor Ord B
A29: EDSH<XBUE> | B29: EDSH | C29: Edesa Holding S.A. | D29: Ord | E29: Edesa Holding S.A. Ord
A30: EDLH<XBUE> | B30: EDLH | C30: Edesal Holding S.A. | D30: Ord | E30: Edesal Holding S.A. Ord
A31: EMDE<XBUE> | B31: EMDE | C31: Emdersa | D31: Ord | E31: Emdersa Ord
A32: CECO2<XBUE> | B32: CECO2 | C32: Enel Generacion Costanera S.A. | D32: Ord | E32: Enel Generacion Costanera S.A. Ord
A33: FERR<XBUE> | B33: FERR | C33: Ferrum | D33: Ord | E33: Ferrum Ord
A34: FIPL<XBUE> | B34: FIPL | C34: Fiplasto | D34: Ord | E34: Fiplasto Ord
A35: GARO<XBUE> | B35: GARO | C35: Garovaglio | D35: Ord | E35: Garovaglio Ord
A36: GBAN<XBUE> | B36: GBAN | C36: Gas Natural Ban | D36: Ord B | E36: Gas Natural Ban Ord B
A37: GRIM<XBUE> | B37: GRIM | C37: Grimoldi | D37: Ord B | E37: Grimoldi Ord B
A38: GCLA<XBUE> | B38: GCLA | C38: Grupo Clarin | D38: Ord B | E38: Grupo Clarin Ord B
A39: OEST<XBUE> | B39: OEST | C39: Grupo Concesionario del Oeste S.A. | D39: Ord B | E39: Grupo Concesionario del Oeste S.A. Ord B
A40: GGAL<XBUE> | B40: GGAL | C40: Grupo Fin. Galicia | D40: Ord B | E40: Grupo Fin. Galicia Ord B
A41: VALO<XBUE> | B41: VALO | C41: Grupo Financiero Valores Sociedad Anonima | D41: Ord | E41: Grupo Financiero Valores Sociedad Anonima Ord
A42: SUPV<XBUE> | B42: SUPV | C42: Grupo Supervielle S.A. | D42: Ord B | E42: Grupo Supervielle S.A. Ord B
A43: HAVA<XBUE> | B43: HAVA | C43: Havanna Holding S.A. | D43: Ord B | E43: Havanna Holding S.A. Ord B
A44: HARG<XBUE> | B44: HARG | C44: Holcim Argentina | D44: Ord | E44: Holcim Argentina Ord
A45: PATA<XBUE> | B45: PATA | C45: Import. Y Export. de La Patagonia | D45: Ord | E45: Import. Y Export. de La Patagonia Ord
A46: ROSE<XBUE> | B46: ROSE | C46: Instituto Rosenbusch | D46: Ord B | E46: Instituto Rosenbusch Ord B
A47: INAG<XBUE> | B47: INAG | C47: Insumos Agroquímicos S.A. | D47: Ord B | E47: Insumos Agroquímicos S.A. Ord B
A48: INTR<XBUE> | B48: INTR | C48: Introductora | D48: Ord B | E48: Introductora Ord B
A49: INVJ<XBUE> | B49: INVJ | C49: Inversora Juramento | D49: Ord B | E49: Inversora Juramento Ord B
A50: IRSA<XBUE> | B50: IRSA | C50: Irsa Inversiones Y Representaciones S.A. | D50: Ord | E50: Irsa Inversiones Y Representaciones S.A. Ord
A51: IRCP<XBUE> | B51: IRCP | C51: Irsa Propiedades Comerciales S.A Ex Alto Palermo | D51: Ord | E51: Irsa Propiedades Comerciales S.A Ex Alto Palermo Ord
A52: RICH<XBUE> | B52: RICH | C52: Laboratorios Richmond S.A.C.I.F. | D52: Ord B | E52: Laboratorios Richmond S.A.C.I.F. Ord B
A53: LEDE<XBUE> | B53: LEDE | C53: Ledesma | D53: Ord | E53: Ledesma Ord
A54: LOMA<XBUE> | B54: LOMA | C54: Loma Negra | D54: Ord | E54: Loma Negra Ord
A55: LONG<XBUE> | B55: LONG | C55: Longvie | D55: Ord B | E55: Longvie Ord B
A56: MTR<XBUE> | B56: MTR | C56: Matba Rofex S.A. | D56: Ord | E56: Matba Rofex S.A. Ord
A57: MERA<XBUE> | B57: MERA | C57: Meranol | D57: Ord | E57: Meranol Ord
A58: METR<XBUE> | B58: METR | C58: Metrogas | D58: Ord B | E58: Metrogas Ord B
A59: MIRG<XBUE> | B59: MIRG | C59: Mirgor | D59: Ord C | E59: Mirgor Ord C
A60: MOLA<XBUE> | B60: MOLA | C60: Molinos Agro S.A. | D60: Ord B | E60: Molinos Agro S.A. Ord B
A61: MOLI<XBUE> | B61: MOLI | C61: Molinos Rio | D61: Ord B | E61: Molinos Rio Ord B
A62: MORI<XBUE> | B62: MORI | C62: Morixe | D62: Ord | E62: Morixe Ord
A63: PAMP<XBUE> | B63: PAMP | C63: Pampa Energia S.A. | D63: Ord | E63: Pampa Energia S.A. Ord
A64: PGR<XBUE> | B64: PGR | C64: Phoenix Global Resources Plc | D64: Ord | E64: Phoenix Global Resources Plc Ord
A65: POLL<XBUE> | B65: POLL | C65: Polledo | D65: Ord | E65: Polledo Ord
A66: RIGO<XBUE> | B66: RIGO | C66: Rigolleau | D66: Ord | E66: Rigolleau Ord
A67: SAMI<XBUE> | B67: SAMI | C67: San Miguel | D67: Ord B | E67: San Miguel Ord B
A68: SEMI<XBUE> | B68: SEMI | C68: Semino, Mol J | D68: Ord | E68: =IFERROR(CONCATENATE(C68," ",D68),"") -> Semino, Mol J Ord
A69: TECO2<XBUE> | B69: TECO2 | C69: Telecom Argentina S.A. | D69: Ord B | E69: Telecom Argentina S.A. Ord B
A70: TXAR<XBUE> | B70: TXAR | C70: Ternium Argentina | D70: Ord | E70: Ternium Argentina Ord
A71: TGLT<XBUE> | B71: TGLT | C71: Tglt S.A. | D71: Ord | E71: Tglt S.A. Ord
A72: TRAN<XBUE> | B72: TRAN | C72: Transener | D72: Ord B | E72: Transener Ord B
A73: TGNO4<XBUE> | B73: TGNO4 | C73: Transp Gas de Norte | D73: Ord C | E73: Transp Gas de Norte Ord C
A74: TGSU2<XBUE> | B74: TGSU2 | C74: Transp Gas Sur | D74: Ord B | E74: Transp Gas Sur Ord B
A75: YPFD<XBUE> | B75: YPFD | C75: Ypf S.A. | D75: Ord D | E75: Ypf S.A. Ord D
E76: =IFERROR(CONCATENATE(C76," ",D76),"") -> 
E132: =IFERROR(CONCATENATE(C132," ",D132),"") -> 
E196: =IFERROR(CONCATENATE(C196," ",D196),"") -> 
